Workbook

Sheet 计数统计表
A1: 方向 | B1: 工艺学硕 | C1: 工艺专硕 | D1: 催化学硕 | E1: 催化专硕 | F1: 工程学硕 | G1: 工程专硕 | H1: 环境学硕 | I1: 环境专硕 | J1: 国际班 | K1: 总计
A2: 人数 | B2: 54 | C2: 35 | D2: 32 | E2: 20 | F2: 32 | G2: 26 | H2: 24 | I2: 13 | J2: 19 | K2: =SUM(B2:J2) -> 255

Sheet 工艺学硕
A1: 序号 | B1: 学号 | C1: 姓名 | D1: 方向 | E1: 德育成绩 | K1: 智育成绩 | Q1: 文体成绩 | W1: 总分 | X1: 排名
E2: 基础分 | F2: 奖励分 | G2: 惩罚分 | H2: 个人德育总分 | I2: 个人德育总分/基准 | J2: 德育总成绩 | K2: 基础分 | L2: 奖励分 | M2: 惩罚分 | N2: 个人智育总分 | O2: 个人智育总分/基准 | P2: 智育总成绩 | Q2: 基础分 | R2: 奖励分 | S2: 惩罚分 | T2: 个人文体总分 | U2: 个人文体总分/基准 | V2: 文体总成绩
A3: 1 | B3: 2022210521 | C3: 乔亮 | D3: 工艺学硕 | E3: 108.8134375 | F3: 23.8 | G3: 0 | H3: 132.6134375 | I3: 0.980456169 | J3: 98.0456169 | K3: 99.64 | L3: 14 | M3: 0 | N3: 113.64 | O3: 1 | P3: 100 | Q3: 108 | R3: 14.66666667 | S3: 0 | T3: 122.6666667 | U3: 0.9860664523 | V3: 98.60664523 | W3: 99.4697879 | X3: 1
A4: 2 | B4: 2022210580 | C4: 曹欣 | D4: 工艺学硕 | E4: 107.556875 | F4: 27.7 | G4: 0 | H4: 135.256875 | I4: 1 | J4: 100 | K4: 88.9125 | L4: 0 | M4: 0 | N4: 88.9125 | O4: 0.782404963 | P4: 78.2404963 | Q4: 102 | R4: 0 | S4: 0 | T4: 102 | U4: 0.8199356913 | V4: 81.99356913 | W4: 82.96770433 | X4: 2
A5: 3 | B5: 2022210628 | C5: 王琛琳 | D5: 工艺学硕 | E5: 114.826875 | F5: 13 | G5: 0 | H5: 127.826875 | I5: 0.9450674873 | J5: 94.50674873 | K5: 85.36579818 | L5: 3.595238 | M5: 0 | N5: 88.96103618 | O5: 0.7828320677 | P5: 78.28320677 | Q5: 107.6667 | R5: 0 | S5: 0 | T5: 107.6667 | U5: 0.8654879421 | V5: 86.54879421 | W5: 82.35447391 | X5: 3
A6: 4 | B6: 2022210519 | C6: 刘英杰 | D6: 工艺学硕 | E6: 107.62 | F6: 13 | G6: 0 | H6: 120.62 | I6: 0.8917846135 | J6: 89.17846135 | K6: 91.31 | L6: 0 | M6: 0 | N6: 91.31 | O6: 0.8035022879 | P6: 80.35022879 | Q6: 100 | R6: 0 | S6: 0 | T6: 100 | U6: 0.8038585209 | V6: 80.38585209 | W6: 82.11943763 | X6: 4
A7: 5 | B7: 2022210592 | C7: 王美杰 | D7: 工艺学硕 | E7: 108.210625 | F7: 5 | G7: 0 | H7: 113.210625 | I7: 0.8370045885 | J7: 83.70045885 | K7: 89.46666667 | L7: 1.5 | M7: 0 | N7: 90.96666667 | O7: 0.8004810513 | P7: 80.04810513 | Q7: 100 | R7: 0 | S7: 0 | T7: 100 | U7: 0.8038585209 | V7: 80.38585209 | W7: 80.81235057 | X7: 5
A8: 6 | B8: 2022210633 | C8: 孙博 | D8: 工艺学硕 | E8: 117.44 | F8: 12.6 | G8: 0 | H8: 130.04 | I8: 0.9614298719 | J8: 96.14298719 | K8: 83.18 | L8: 2.994 | M8: 0 | N8: 86.174 | O8: 0.7583069342 | P8: 75.83069342 | Q8: 100 | R8: 0 | S8: 0 | T8: 100 | U8: 0.8038585209 | V8: 80.38585209 | W8: 80.34866804 | X8: 6
A9: 7 | B9: 2022210570 | C9: 黄启广 | D9: 工艺学硕 | E9: 101.384375 | F9: 9 | G9: 0 | H9: 110.384375 | I9: 0.8161091627 | J9: 81.61091627 | K9: 90.83125 | L9: 0 | M9: 0 | N9: 90.83125 | O9: 0.7992894227 | P9: 79.92894227 | Q9: 100 | R9: 0 | S9: 0 | T9: 100 | U9: 0.8038585209 | V9: 80.38585209 | W9: 80.31102805 | X9: 7
A10: 8 | B10: 2022210548 | C10: 李昊明 | D10: 工艺学硕 | E10: 101.62 | F10: 8 | G10: 0 | H10: 109.62 | I10: 0.8104578788 | J10: 81.04578788 | K10: 86.82 | L10: 0.5 | M10: 0 | N10: 87.32 | O10: 0.7683914115 | P10: 76.83914115 | Q10: 112 | R10: 7.467 | S10: 0 | T10: 119.467 | U10: 0.9603456592 | V10: 96.03456592 | W10: 79.60001297 | X10: 8
A11: 9 | B11: 2022210621 | C11: 王淙恺 | D11: 工艺学硕 | E11: 96.96 | F11: 5 | G11: 0 | H11: 101.96 | I11: 0.753824898 | J11: 75.3824898 | K11: 90.482 | L11: 0.25 | M11: 0 | N11: 90.732 | O11: 0.7984160507 | P11: 79.84160507 | Q11: 100 | R11: 0 | S11: 0 | T11: 100 | U11: 0.8038585209 | V11: 80.38585209 | W11: 79.00420672 | X11: 9
A12: 10 | B12: 2022210624 | C12: 李丽莎 | D12: 工艺学硕 | E12: 104.27625 | F12: 8.8 | G12: 0 | H12: 113.07625 | I12: 0.8360111085 | J12: 83.60111085 | K12: 86.75 | L12: 0 | M12: 0 | N12: 86.75 | O12: 0.763375572 | P12: 76.3375572 | Q12: 107 | R12: 0 | S12: 0 | T12: 107 | U12: 0.8601286174 | V12: 86.01286174 | W12: 78.75779838 | X12: 10
A13: 11 | B13: 2022210509 | C13: 晏燕 | D13: 工艺学硕 | E13: 101.5878125 | F13: 9 | G13: 0 | H13: 110.5878125 | I13: 0.8176132452 | J13: 81.76132452 | K13: 87.18529412 | L13: 0.4285714286 | M13: 0 | N13: 87.61386555 | O13: 0.7709773455 | P13: 77.09773455 | Q13: 100 | R13: 0 | S13: 0 | T13: 100 | U13: 0.8038585209 | V13: 80.38585209 | W13: 78.3592643 | X13: 11
A14: 12 | B14: 2022210531 | C14: 李铎 | D14: 工艺学硕 | E14: 106.003125 | F14: 4.6 | G14: 0 | H14: 110.603125 | I14: 0.8177264557 | J14: 81.77264557 | K14: 87.275 | L14: 0 | M14: 0 | N14: 87.275 | O14: 0.7679954241 | P14: 76.79954241 | Q14: 100 | R14: 0 | S14: 0 | T14: 100 | U14: 0.8038585209 | V14: 80.38585209 | W14: 78.15279401 | X14: 12
A15: 13 | B15: 2022210582 | C15: 焦琳凯 | D15: 工艺学硕 | E15: 101.139375 | F15: 3 | G15: 0 | H15: 104.139375 | I15: 0.7699377573 | J15: 76.99377573 | K15: 88.82105263 | L15: 0 | M15: 0 | N15: 88.82105263 | O15: 0.7816002519 | P15: 78.16002519 | Q15: 100 | R15: 0 | S15: 0 | T15: 100 | U15: 0.8038585209 | V15: 80.38585209 | W15: 78.14935799 | X15: 13
A16: 14 | B16: 2022210578 | C16: 马壮 | D16: 工艺学硕 | E16: 97.10875 | F16: 3 | G16: 0 | H16: 100.10875 | I16: 0.7401379782 | J16: 74.01379782 | K16: 82.42375 | L16: 7.323232 | M16: 0 | N16: 89.746982 | O16: 0.7897481697 | P16: 78.97481697 | Q16: 100 | R16: 0 | S16: 0 | T16: 100 | U16: 0.8038585209 | V16: 80.38585209 | W16: 78.12371665 | X16: 14
A17: 15 | B17: 2022210571 | C17: 罗湘旭 | D17: 工艺学硕 | E17: 104.84 | F17: 13 | G17: 0 | H17: 117.84 | I17: 0.8712311297 | J17: 87.12311297 | K17: 85.13 | L17: 0 | M17: 0 | N17: 85.13 | O17: 0.7491200282 | P17: 74.91200282 | Q17: 100 | R17: 0 | S17: 0 | T17: 100 | U17: 0.8038585209 | V17: 80.38585209 | W17: 77.90160977 | X17: 15
A18: 16 | B18: 2022210601 | C18: 冯晓 | D18: 工艺学硕 | E18: 106.92 | F18: 6 | G18: 0 | H18: 112.92 | I18: 0.8348558992 | J18: 83.48558992 | K18: 83.03 | L18: 0 | M18: 0 | N18: 83.03 | O18: 0.7306406195 | P18: 73.06406195 | Q18: 116.4 | R18: 8 | S18: 0 | T18: 124.4 | U18: 1 | V18: 100 | W18: 77.84196135 | X18: 16
A19: 17 | B19: 2202210639 | C19: 李丹 | D19: 工艺学硕 | E19: 102.8621875 | F19: 5 | G19: 0 | H19: 107.8621875 | I19: 0.7974617741 | J19: 79.74617741 | K19: 87.13157895 | L19: 0.1785714286 | M19: 0 | N19: 87.31015038 | O19: 0.7683047376 | P19: 76.83047376 | Q19: 100 | R19: 0 | S19: 0 | T19: 100 | U19: 0.8038585209 | V19: 80.38585209 | W19: 77.76915232 | X19: 17
A20: 18 | B20: 2022210573 | C20: 杨建宇 | D20: 工艺学硕 | E20: 99.02125 | F20: 0 | G20: 0 | H20: 99.02125 | I20: 0.7320977215 | J20: 73.20977215 | K20: 89.0967033 | L20: 0 | M20: 0 | N20: 89.0967033 | O20: 0.7840259002 | P20: 78.40259002 | Q20: 100 | R20: 0 | S20: 0 | T20: 100 | U20: 0.8038585209 | V20: 80.38585209 | W20: 77.56235265 | X20: 18
A21: 19 | B21: 2022210641 | C21: 程小洛 | D21: 工艺学硕 | E21: 107.02 | F21: 14 | G21: 0 | H21: 121.02 | I21: 0.8947419493 | J21: 89.47419493 | K21: 83.22 | L21: 0 | M21: 0 | N21: 83.22 | O21: 0.732312566 | P21: 73.2312566 | Q21: 104 | R21: 0 | S21: 0 | T21: 104 | U21: 0.8360128617 | V21: 83.60128617 | W21: 77.51684722 | X21: 19
A22: 20 | B22: 2022210532 | C22: 陶塬 | D22: 工艺学硕 | E22: 104.9371875 | F22: 9 | G22: 0 | H22: 113.9371875 | I22: 0.8423763117 | J22: 84.23763117 | K22: 81.435 | L22: 0.625 | M22: 0 | N22: 82.06 | O22: 0.7221048926 | P22: 72.21048926 | Q22: 108 | R22: 15 | S22: 0 | T22: 123 | U22: 0.9887459807 | V22: 98.87459807 | W22: 77.28232853 | X22: 20
A23: 21 | B23: 2022210537 | C23: 郝保康 | D23: 工艺学硕 | E23: 97.183125 | F23: 11.5 | G23: 0 | H23: 108.683125 | I23: 0.8035312438 | J23: 80.35312438 | K23: 83.72631579 | L23: 2.5 | M23: 0 | N23: 86.22631579 | O23: 0.7587672984 | P23: 75.87672984 | Q23: 100 | R23: 0 | S23: 0 | T23: 100 | U23: 0.8038585209 | V23: 80.38585209 | W23: 77.22292097 | X23: 21
A24: 22 | B24: 2022210612 | C24: 王凯宁 | D24: 工艺学硕 | E24: 101.32 | F24: 4 | G24: 0 | H24: 105.32 | I24: 0.7786665188 | J24: 77.86665188 | K24: 87 | L24: 0 | M24: 0 | N24: 87 | O24: 0.7655755016 | P24: 76.55755016 | Q24: 100 | R24: 0 | S24: 0 | T24: 100 | U24: 0.8038585209 | V24: 80.38585209 | W24: 77.2022007 | X24: 22
A25: 23 | B25: 2022210538 | C25: 王欣悦 | D25: 工艺学硕 | E25: 102.9678125 | F25: 11.1 | G25: 0 | H25: 114.0678125 | I25: 0.8433420667 | J25: 84.33420667 | K25: 84.86842105 | L25: 0 | M25: 0 | N25: 84.86842105 | O25: 0.7468182071 | P25: 74.68182071 | Q25: 100 | R25: 0 | S25: 0 | T25: 100 | U25: 0.8038585209 | V25: 80.38585209 | W25: 77.18270104 | X25: 23
A26: 24 | B26: 2022210593 | C26: 王婧 | D26: 工艺学硕 | E26: 100.49 | F26: 7 | G26: 0 | H26: 107.49 | I26: 0.7947100656 | J26: 79.47100656 | K26: 83.003 | L26: 2.1015 | M26: 0 | N26: 85.1045 | O26: 0.7488956353 | P26: 74.88956353 | Q26: 103 | R26: 0 | S26: 0 | T26: 103 | U26: 0.8279742765 | V26: 82.79742765 | W26: 76.59663855 | X26: 24
A27: 25 | B27: 2022210523 | C27: 杨乐琪 | D27: 工艺学硕 | E27: 105.31 | F27: 0 | G27: 0 | H27: 105.31 | I27: 0.7785925854 | J27: 77.85925854 | K27: 85.53 | L27: 0 | M27: 0 | N27: 85.53 | O27: 0.7526399155 | P27: 75.26399155 | Q27: 101 | R27: 0 | S27: 0 | T27: 101 | U27: 0.8118971061 | V27: 81.18971061 | W27: 76.37561686 | X27: 25
A28: 26 | B28: 2022210533 | C28: 吴佳媛 | D28: 工艺学硕 | E28: 104.15 | F28: 4.6 | G28: 0 | H28: 108.75 | I28: 0.8040256734 | J28: 80.40256734 | K28: 84.57 | L28: 0 | M28: 0 | N28: 84.57 | O28: 0.7441921859 | P28: 74.41921859 | Q28: 102 | R28: 0 | S28: 0 | T28: 102 | U28: 0.8199356913 | V28: 81.99356913 | W28: 76.37332339 | X28: 26
A29: 27 | B29: 2022210625 | C29: 许诺 | D29: 工艺学硕 | E29: 101.12625 | F29: 4 | G29: 0 | H29: 105.12625 | I29: 0.7772340593 | J29: 77.72340593 | K29: 85.64545455 | L29: 0 | M29: 0 | N29: 85.64545455 | O29: 0.753655883 | P29: 75.3655883 | Q29: 100 | R29: 0 | S29: 0 | T29: 100 | U29: 0.8038585209 | V29: 80.38585209 | W29: 76.33917821 | X29: 27
A30: 28 | B30: 2022210526 | C30: 霍德玺 | D30: 工艺学硕 | E30: 101.14 | F30: 4 | G30: 0 | H30: 105.14 | I30: 0.7773357177 | J30: 77.73357177 | K30: 79.47 | L30: 6 | M30: 0 | N30: 85.47 | O30: 0.7521119324 | P30: 75.21119324 | Q30: 100 | R30: 0 | S30: 0 | T30: 100 | U30: 0.8038585209 | V30: 80.38585209 | W30: 76.23313483 | X30: 28
A31: 29 | B31: 2022210642 | C31: 张欣燕 | D31: 工艺学硕 | E31: 99.0803125 | F31: 4 | G31: 0 | H31: 103.0803125 | I31: 0.7621077487 | J31: 76.21077487 | K31: 85.53684211 | L31: 0 | M31: 0 | N31: 85.53684211 | O31: 0.7527001241 | P31: 75.27001241 | Q31: 100 | R31: 0 | S31: 0 | T31: 100 | U31: 0.8038585209 | V31: 80.38585209 | W31: 75.96974887 | X31: 29
A32: 30 | B32: 2022210640 | C32: 吴雨琪 | D32: 工艺学硕 | E32: 99.13 | F32: 5 | G32: 0 | H32: 104.13 | I32: 0.7698684448 | J32: 76.98684448 | K32: 84.91 | L32: 0.1786 | M32: 0 | N32: 85.0886 | O32: 0.7487557198 | P32: 74.87557198 | Q32: 100 | R32: 0 | S32: 0 | T32: 100 | U32: 0.8038585209 | V32: 80.38585209 | W32: 75.84885449 | X32: 30
A33: 31 | B33: 2022210579 | C33: 张祺 | D33: 工艺学硕 | E33: 101.4671875 | F33: 4.6 | G33: 0 | H33: 106.0671875 | I33: 0.7841907297 | J33: 78.41907297 | K33: 79.525 | L33: 5.050505 | M33: 0 | N33: 84.575505 | O33: 0.7442406283 | P33: 74.42406283 | Q33: 100 | R33: 0 | S33: 0 | T33: 100 | U33: 0.8038585209 | V33: 80.38585209 | W33: 75.81924378 | X33: 31
A34: 32 | B34: 2022210510 | C34: 俞非 | D34: 工艺学硕 | E34: 96.65 | F34: 9 | G34: 0 | H34: 105.65 | I34: 0.7811063208 | J34: 78.11063208 | K34: 84.62 | L34: 0 | M34: 0 | N34: 84.62 | O34: 0.7446321718 | P34: 74.46321718 | Q34: 100 | R34: 0 | S34: 0 | T34: 100 | U34: 0.8038585209 | V34: 80.38585209 | W34: 75.78496365 | X34: 32
A35: 33 | B35: 2022210572 | C35: 王倩 | D35: 工艺学硕 | E35: 104.8969375 | F35: 8 | G35: 0 | H35: 112.8969375 | I35: 0.8346853903 | J35: 83.46853903 | K35: 82.55263158 | L35: 0 | M35: 0 | N35: 82.55263158 | O35: 0.7264399118 | P35: 72.64399118 | Q35: 100 | R35: 0 | S35: 0 | T35: 100 | U35: 0.8038585209 | V35: 80.38585209 | W35: 75.58308684 | X35: 33
A36: 34 | B36: 2022210602 | C36: 赵文龙 | D36: 工艺学硕 | E36: 101.28 | F36: 4 | G36: 0 | H36: 105.28 | I36: 0.7783707852 | J36: 77.83707852 | K36: 82.54 | L36: 0 | M36: 0 | N36: 82.54 | O36: 0.7263287575 | P36: 72.63287575 | Q36: 110 | R36: 3.33 | S36: 0 | T36: 113.33 | U36: 0.9110128617 | V36: 91.10128617 | W36: 75.52055735 | X36: 34
A37: 35 | B37: 2022210511 | C37: 张润清 | D37: 工艺学硕 | E37: 96.67 | F37: 7 | G37: 0 | H37: 103.67 | I37: 0.7664675086 | J37: 76.64675086 | K37: 82.39 | L37: 2.143 | M37: 0 | N37: 84.533 | O37: 0.7438665963 | P37: 74.38665963 | Q37: 100 | R37: 0 | S37: 0 | T37: 100 | U37: 0.8038585209 | V37: 80.38585209 | W37: 75.43859712 | X37: 35
A38: 36 | B38: 2022210530 | C38: 陈龙 | D38: 工艺学硕 | E38: 97.18 | F38: 1 | G38: 0 | H38: 98.18 | I38: 0.7258780746 | J38: 72.58780746 | K38: 85.78 | L38: 0 | M38: 0 | N38: 85.78 | O38: 0.7548398451 | P38: 75.48398451 | Q38: 100 | R38: 0 | S38: 0 | T38: 100 | U38: 0.8038585209 | V38: 80.38585209 | W38: 75.39493586 | X38: 36
A39: 37 | B39: 2022210587 | C39: 牛俊敏 | D39: 工艺学硕 | E39: 104.3 | F39: 4 | G39: 0 | H39: 108.3 | I39: 0.8006986706 | J39: 80.06986706 | K39: 82.77 | L39: 0.333 | M39: 0 | N39: 83.103 | O39: 0.7312829989 | P39: 73.12829989 | Q39: 100 | R39: 0 | S39: 0 | T39: 100 | U39: 0.8038585209 | V39: 80.38585209 | W39: 75.24236855 | X39: 37
A40: 38 | B40: 2022210609 | C40: 郭际玲 | D40: 工艺学硕 | E40: 100.65 | F40: 3 | G40: 0 | H40: 103.65 | I40: 0.7663196418 | J40: 76.63196418 | K40: 84.03 | L40: 0 | M40: 0 | N40: 84.03 | O40: 0.7394403379 | P40: 73.94403379 | Q40: 100 | R40: 0 | S40: 0 | T40: 100 | U40: 0.8038585209 | V40: 80.38585209 | W40: 75.1258017 | X40: 38
A41: 39 | B41: 2022210536 | C41: 韩琳琳 | D41: 工艺学硕 | E41: 99.16 | F41: 6 | G41: 0 | H41: 105.16 | I41: 0.7774835845 | J41: 77.74835845 | K41: 83.52 | L41: 0 | M41: 0 | N41: 83.52 | O41: 0.7349524815 | P41: 73.49524815 | Q41: 100 | R41: 0 | S41: 0 | T41: 100 | U41: 0.8038585209 | V41: 80.38585209 | W41: 75.0349306 | X41: 39
A42: 40 | B42: 2022210622 | C42: 赵乾煜 | D42: 工艺学硕 | E42: 98.973125 | F42: 3 | G42: 0 | H42: 101.973125 | I42: 0.7539219356 | J42: 75.39219356 | K42: 83.75555556 | L42: 0 | M42: 0 | N42: 83.75555556 | O42: 0.7370253041 | P42: 73.70253041 | Q42: 100 | R42: 0 | S42: 0 | T42: 100 | U42: 0.8038585209 | V42: 80.38585209 | W42: 74.70879521 | X42: 40
A43: 41 | B43: 2022210550 | C43: 张纯 | D43: 工艺学硕 | E43: 97.0146875 | F43: 0 | G43: 0 | H43: 97.0146875 | I43: 0.7172625236 | J43: 71.72625236 | K43: 84 | L43: 0.375 | M43: 0 | N43: 84.375 | O43: 0.7424762408 | P43: 74.24762408 | Q43: 100 | R43: 0 | S43: 0 | T43: 100 | U43: 0.8038585209 | V43: 80.38585209 | W43: 74.35717253 | X43: 41
A44: 42 | B44: 2022210591 | C44: 戈涵娜 | D44: 工艺学硕 | E44: 98.8046875 | F44: 1 | G44: 0 | H44: 99.8046875 | I44: 0.7378899409 | J44: 73.78899409 | K44: 83.625 | L44: 0 | M44: 0 | N44: 83.625 | O44: 0.735876452 | P44: 73.5876452 | Q44: 100 | R44: 0 | S44: 0 | T44: 100 | U44: 0.8038585209 | V44: 80.38585209 | W44: 74.30773566 | X44: 42
A45: 43 | B45: 2022210588 | C45: 任俊颖 | D45: 工艺学硕 | E45: 101.09 | F45: 1 | G45: 0 | H45: 102.09 | I45: 0.7547860321 | J45: 75.47860321 | K45: 80.73 | L45: 2.333 | M45: 0 | N45: 83.063 | O45: 0.7309310102 | P45: 73.09310102 | Q45: 100 | R45: 0 | S45: 0 | T45: 100 | U45: 0.8038585209 | V45: 80.38585209 | W45: 74.29947657 | X45: 43
A46: 44 | B46: 2022210549 | C46: 刘佳豪 | D46: 工艺学硕 | E46: 97.4653125 | F46: 0 | G46: 0 | H46: 97.4653125 | I46: 0.7205941472 | J46: 72.05941472 | K46: 83.09444444 | L46: 0.625 | M46: 0 | N46: 83.71944444 | O46: 0.7367075365 | P46: 73.67075365 | Q46: 100 | R46: 0 | S46: 0 | T46: 100 | U46: 0.8038585209 | V46: 80.38585209 | W46: 74.01999571 | X46: 44
A47: 45 | B47: 2022210584 | C47: 王玉茹 | D47: 工艺学硕 | E47: 97.534375 | F47: 4 | G47: 0 | H47: 101.534375 | I47: 0.7506781079 | J47: 75.06781079 | K47: 82.13157895 | L47: 0 | M47: 0 | N47: 82.13157895 | O47: 0.7227347672 | P47: 72.27347672 | Q47: 100 | R47: 0 | S47: 0 | T47: 100 | U47: 0.8038585209 | V47: 80.38585209 | W47: 73.64358107 | X47: 45
A48: 46 | B48: 2022210613 | C48: 薛西楠 | D48: 工艺学硕 | E48: 98.88 | F48: 4 | G48: 0 | H48: 102.88 | I48: 0.7606267704 | J48: 76.06267704 | K48: 79.2 | L48: 2.513 | M48: 0 | N48: 81.713 | O48: 0.7190513904 | P48: 71.90513904 | Q48: 100 | R48: 0 | S48: 0 | T48: 100 | U48: 0.8038585209 | V48: 80.38585209 | W48: 73.58471794 | X48: 46
A49: 47 | B49: 2022210599 | C49: 邓百炼 | D49: 工艺学硕 | E49: 97.139375 | F49: 0 | G49: 0 | H49: 97.139375 | I49: 0.7181843806 | J49: 71.81843806 | K49: 82.5 | L49: 0 | M49: 0 | N49: 82.5 | O49: 0.7259767687 | P49: 72.59767687 | Q49: 100 | R49: 0 | S49: 0 | T49: 100 | U49: 0.8038585209 | V49: 80.38585209 | W49: 73.22064663 | X49: 47
A50: 48 | B50: 2022210581 | C50: 耿晓瑞 | D50: 工艺学硕 | E50: 98.56 | F50: 3 | G50: 0 | H50: 101.56 | I50: 0.7508675622 | J50: 75.08675622 | K50: 80.32 | L50: 0 | M50: 0 | N50: 80.32 | O50: 0.7067933826 | P50: 70.67933826 | Q50: 100 | R50: 0 | S50: 0 | T50: 100 | U50: 0.8038585209 | V50: 80.38585209 | W50: 72.53147324 | X50: 48
A51: 49 | B51: 2022210522 | C51: 宋新园 | D51: 工艺学硕 | E51: 106.61 | F51: 4.8 | G51: 0 | H51: 111.41 | I51: 0.8236919565 | J51: 82.36919565 | K51: 77.15 | L51: 0 | M51: 0 | N51: 77.15 | O51: 0.6788982753 | P51: 67.88982753 | Q51: 104.67 | R51: 0 | S51: 0 | T51: 104.67 | U51: 0.8413987138 | V51: 84.13987138 | W51: 72.41070554 | X51: 49
A52: 50 | B52: 2022210647 | C52: 闫思源 | D52: 工艺学硕 | E52: 99.58 | F52: 0 | G52: 0 | H52: 99.58 | I52: 0.7362287499 | J52: 73.62287499 | K52: 80.07 | L52: 0 | M52: 0 | N52: 80.07 | O52: 0.704593453 | P52: 70.4593453 | Q52: 100 | R52: 0 | S52: 0 | T52: 100 | U52: 0.8038585209 | V52: 80.38585209 | W52: 72.08470192 | X52: 50
A53: 51 | B53: 2022210610 | C53: 虢江波 | D53: 工艺学硕 | E53: 97.065 | F53: 0 | G53: 0 | H53: 97.065 | I53: 0.717634501 | J53: 71.7634501 | K53: 78.29583333 | L53: 0 | M53: 0 | N53: 78.29583333 | O53: 0.6889812859 | P53: 68.89812859 | Q53: 108 | R53: 0 | S53: 0 | T53: 108 | U53: 0.8681672026 | V53: 86.81672026 | W53: 71.26305206 | X53: 51
A54: 52 | B54: 2022210629 | C54: 王键烽 | D54: 工艺学硕 | E54: 109.68 | F54: 0 | G54: 0 | H54: 109.68 | I54: 0.8109014791 | J54: 81.09014791 | K54: 73.11 | L54: 0 | M54: 0 | N54: 73.11 | O54: 0.6433474129 | P54: 64.33474129 | Q54: 110 | R54: 0 | S54: 0 | T54: 110 | U54: 0.884244373 | V54: 88.4244373 | W54: 70.09479221 | X54: 52
A55: 53 | B55: 2022210645 | C55: 高清逸 | D55: 工艺学硕 | E55: 99.24875 | F55: 3 | G55: 0 | H55: 102.24875 | I55: 0.7559597248 | J55: 75.59597248 | K55: 76.055 | L55: 0 | M55: 0 | N55: 76.055 | O55: 0.6692625836 | P55: 66.92625836 | Q55: 100 | R55: 0 | S55: 0 | T55: 100 | U55: 0.8038585209 | V55: 80.38585209 | W55: 70.00616056 | X55: 53
A56: 54 | B56: 2022210600 | C56: 路兵 | D56: 工艺学硕 | E56: 97.61 | F56: 0 | G56: 0 | H56: 97.61 | I56: 0.7216638711 | J56: 72.16638711 | K56: 76.18 | L56: 0 | M56: 0 | N56: 76.18 | O56: 0.6703625484 | P56: 67.03625484 | Q56: 100 | R56: 0 | S56: 0 | T56: 100 | U56: 0.8038585209 | V56: 80.38585209 | W56: 69.39724102 | X56: 54

Sheet 工艺专硕
A1: 序号 | B1: 姓名 | C1: 学号 | D1: 方向 | E1: 德育成绩 | K1: 智育成绩 | Q1: 文体成绩 | W1: 总分 | X1: 排名
E2: 基础分 | F2: 奖励分 | G2: 惩罚分 | H2: 个人德育总分 | I2: 个人德育总分/基准 | J2: 德育总成绩 | K2: 基础分 | L2: 奖励分 | M2: 惩罚分 | N2: 个人智育总分 | O2: 个人智育总分/基准 | P2: 智育总成绩 | Q2: 基础分 | R2: 奖励分 | S2: 惩罚分 | T2: 个人文体总分 | U2: 个人文体总分/基准 | V2: 文体总成绩
A3: 1 | B3: 陈凯毅 | C3: 2022215375 | D3: 工艺专硕 | E3: 110.5100 | F3: 10.0000 | G3: 0 | H3: =E3+F3+G3 -> 120.5100 | I3: =H3/137.966 -> 0.87347607 | J3: 87.34760738 | K3: 82.18839286 | L3: 50.19688645 | M3: 0 | N3: =K3+L3+M3 -> 132.3852793 | O3: =N3/132.3852793 -> 1 | P3: =O3*100 -> 100 | Q3: 101.0000 | R3: 0 | S3: 0 | T3: =Q3+R3+S3 -> 101 | U3: =T3/111.1667 -> 0.9085454547 | V3: =U3*100 -> 90.85454547 | W3: 96.55497602 | X3: 1
A4: 2 | B4: 丁怡 | C4: 2022215376 | D4: 工艺专硕 | E4: 109.9660 | F4: 28.0000 | G4: 0 | H4: =E4+F4+G4 -> 137.9660 | I4: =H4/137.966 -> 1.00000000 | J4: 100 | K4: 87.76339286 | L4: 11.69444444 | M4: 0 | N4: =K4+L4+M4 -> 99.4578373 | O4: =N4/132.3852793 -> 0.7512756541 | P4: =O4*100 -> 75.12756541 | Q4: 108.6667 | R4: 0 | S4: 0 | T4: =Q4+R4+S4 -> 108.6667 | U4: =T4/111.1667 -> 0.9775112511 | V4: =U4*100 -> 97.75112511 | W4: 82.3644083 | X4: 2
A5: 3 | B5: 安俊蒲 | C5: 2022215373 | D5: 工艺专硕 | E5: 109.7300 | F5: 5.0000 | G5: 0 | H5: 114.7300 | I5: 0.83158169 | J5: 83.1581694 | K5: 87.24160714 | L5: 14.52777778 | M5: 0 | N5: 101.7693849 | O5: 0.7687364143 | P5: 76.87364143 | Q5: 100.5000 | R5: 0 | S5: 0 | T5: 100.5 | U5: 0.9040477049 | V5: 90.40477049 | W5: 79.48365993 | X5: 3
A6: 4 | B6: 郭庆 | C6: 2022215374 | D6: 工艺专硕 | E6: 112.4500 | F6: 13.0000 | G6: 0 | H6: 125.4500 | I6: 0.90928200 | J6: 90.9281997 | K6: 90.7823688 | L6: 4.333333333 | M6: 0 | N6: 95.11570214 | O6: 0.7184764246 | P6: 71.84764246 | Q6: 100.5000 | R6: 0 | S6: 0 | T6: 100.5 | U6: 0.9040477049 | V6: 90.40477049 | W6: 77.51946671 | X6: 4
A7: 5 | B7: 赵凡 | C7: 2022215385 | D7: 工艺专硕 | E7: 104.8260 | F7: 11.0000 | G7: 0 | H7: 115.8260 | I7: 0.83952568 | J7: 83.95256802 | K7: 90.51765 | L7: 5 | M7: 0 | N7: 95.51765 | O7: 0.7215126221 | P7: 72.15126221 | Q7: 107.5667 | R7: 0 | S7: 0 | T7: 107.5667 | U7: 0.9676162016 | V7: 96.76162016 | W7: 76.97255917 | X7: 5
A8: 6 | B8: 王佳冉 | C8: 2022215342 | D8: 工艺专硕 | E8: 104.6600 | F8: 11.0000 | G8: 0 | H8: 115.6600 | I8: 0.83832249 | J8: 83.83224852 | K8: 87.875 | L8: 7.291666667 | M8: 0 | N8: 95.16666667 | O8: 0.7188613958 | P8: 71.88613958 | Q8: 109.0000 | R8: 0 | S8: 0 | T8: 109 | U8: 0.9805094511 | V8: 98.05094511 | W8: 76.89184192 | X8: 6
A9: 7 | B9: 曹宇琦 | C9: 2022215371 | D9: 工艺专硕 | E9: 102.1000 | F9: 6.0000 | G9: 0 | H9: 108.1000 | I9: 0.78352638 | J9: 78.35263761 | K9: 89.755 | L9: 3 | M9: 0 | N9: 92.755 | O9: 0.7006443654 | P9: 70.06443654 | Q9: 100.5000 | R9: 0 | S9: 0 | T9: 100.5 | U9: 0.9040477049 | V9: 90.40477049 | W9: 73.75611015 | X9: 7
A10: 8 | B10: 马威 | C10: 2022215338 | D10: 工艺专硕 | E10: 97.8400 | F10: 0.0000 | G10: 0 | H10: 97.8400 | I10: 0.70916023 | J10: 70.91602279 | K10: 87.8375 | L10: 7.5 | M10: 0 | N10: 95.3375 | O10: 0.7201518213 | P10: 72.01518213 | Q10: 100.5000 | R10: 0 | S10: 0 | T10: 100.5 | U10: 0.9040477049 | V10: 90.40477049 | W10: 73.6343091 | X10: 8
A11: 9 | B11: 朱云霄 | C11: 2022215322 | D11: 工艺专硕 | E11: 98.8000 | F11: 5.0000 | G11: 0 | H11: 103.8000 | I11: 0.75235928 | J11: 75.23592769 | K11: 86.89912 | L11: 6.488095238 | M11: 0 | N11: 93.38721524 | O11: 0.7054199359 | P11: 70.54199359 | Q11: 100.5000 | R11: 0 | S11: 0 | T11: 100.5 | U11: 0.9040477049 | V11: 90.40477049 | W11: 73.4670581 | X11: 9
A12: 10 | B12: 张大庆 | C12: 2022215329 | D12: 工艺专硕 | E12: 104.2460 | F12: 9.0000 | G12: 0 | H12: 113.2460 | I12: 0.82082542 | J12: 82.08254208 | K12: 88.26111 | L12: 0 | M12: 0 | N12: 88.26111 | O12: 0.6666988238 | P12: 66.66988238 | Q12: 110.0000 | R12: 1 | S12: 0 | T12: 111 | U12: 0.9985004502 | V12: 99.85004502 | W12: 73.07043058 | X12: 10
A13: 11 | B13: 高成双 | C13: 2022215365 | D13: 工艺专硕 | E13: 104.1200 | F13: 8.0000 | G13: 0 | H13: 112.1200 | I13: 0.81266399 | J13: 81.26639897 | K13: 87.60556 | L13: 0 | M13: 0 | N13: 87.60556 | O13: 0.6617469893 | P13: 66.17469893 | Q13: 108.1000 | R13: 0 | S13: 0 | T13: 108.1 | U13: 0.9724135015 | V13: 97.24135015 | W13: 72.29970406 | X13: 11
A14: 12 | B14: 陈瑶 | C14: 2022215352 | D14: 工艺专硕 | E14: 95.7600 | F14: 0.0000 | G14: 0 | H14: 95.7600 | I14: 0.69408405 | J14: 69.40840497 | K14: 89.42778 | L14: 1.5 | M14: 0 | N14: 90.92778 | O14: 0.6868420755 | P14: 68.68420755 | Q14: 100.0000 | R14: 0 | S14: 0 | T14: 100 | U14: 0.8995499552 | V14: 89.95499552 | W14: 70.95612583 | X14: 12
A15: 13 | B15: 师人博 | C15: 2022215321 | D15: 工艺专硕 | E15: 95.4200 | F15: 5.0000 | G15: 0 | H15: 100.4200 | I15: 0.72786049 | J15: 72.78604874 | K15: 87.18676 | L15: 0 | M15: 0 | N15: 87.18676 | O15: 0.6585834955 | P15: 65.85834955 | Q15: 100.0000 | R15: 0 | S15: 0 | T15: 100 | U15: 0.8995499552 | V15: 89.95499552 | W15: 69.65355399 | X15: 13
A16: 14 | B16: 董金业 | C16: 2022215328 | D16: 工艺专硕 | E16: 100.7000 | F16: 4.0000 | G16: 0 | H16: 104.7000 | I16: 0.75888262 | J16: 75.88826233 | K16: 85.70222 | L16: 0 | M16: 0 | N16: 85.70222 | O16: 0.647369711 | P16: 64.7369711 | Q16: 100.5000 | R16: 0 | S16: 0 | T16: 100.5 | U16: 0.9040477049 | V16: 90.40477049 | W16: 69.53400928 | X16: 14
A17: 15 | B17: 张楠 | C17: 2022215317 | D17: 工艺专硕 | E17: 100.6000 | F17: 4.0000 | G17: 0 | H17: 104.6000 | I17: 0.75815781 | J17: 75.8157807 | K17: 84.96302 | L17: 0 | M17: 0 | N17: 84.96302 | O17: 0.6417860086 | P17: 64.17860086 | Q17: 102.0000 | R17: 2 | S17: 0 | T17: 104 | U17: 0.9355319534 | V17: 93.55319534 | W17: 69.44349627 | X17: 15
A18: 16 | B18: 刘雨轩 | C18: 2022215353 | D18: 工艺专硕 | E18: 95.6400 | F18: 5.0000 | G18: 0 | H18: 100.6400 | I18: 0.72945508 | J18: 72.94550831 | K18: 84.825 | L18: 1.25 | M18: 0 | N18: 86.075 | O18: 0.650185583 | P18: 65.0185583 | Q18: 100.0000 | R18: 0 | S18: 0 | T18: 100 | U18: 0.8995499552 | V18: 89.95499552 | W18: 69.09759202 | X18: 16
A19: 17 | B19: 吴达 | C19: 2022215366 | D19: 工艺专硕 | E19: 98.9000 | F19: 0.0000 | G19: 0 | H19: 98.9000 | I19: 0.71684328 | J19: 71.68432802 | K19: 84.48889 | L19: 1.5 | M19: 0 | N19: 85.98889 | O19: 0.649535133 | P19: 64.9535133 | Q19: 101.0000 | R19: 0 | S19: 0 | T19: 101 | U19: 0.9085454547 | V19: 90.85454547 | W19: 68.88977946 | X19: 17
A20: 18 | B20: 于星渤 | C20: 2022215339 | D20: 工艺专硕 | E20: 99.7800 | F20: 0.0000 | G20: 0 | H20: 99.7800 | I20: 0.72322166 | J20: 72.32216633 | K20: 84.51176 | L20: 0.75 | M20: 0 | N20: 85.26176 | O20: 0.6440426039 | P20: 64.40426039 | Q20: 100.5000 | R20: 0 | S20: 0 | T20: 100.5 | U20: 0.9040477049 | V20: 90.40477049 | W20: 68.58789259 | X20: 18
A21: 19 | B21: 王兵 | C21: 2022215381 | D21: 工艺专硕 | E21: 98.7000 | F21: 0.0000 | G21: 0 | H21: 98.7000 | I21: 0.71539365 | J21: 71.53936477 | K21: 85.625 | L21: 0 | M21: 0 | N21: 85.625 | O21: 0.6467864135 | P21: 64.67864135 | Q21: 100.0000 | R21: 0 | S21: 0 | T21: 100 | U21: 0.8995499552 | V21: 89.95499552 | W21: 68.57842145 | X21: 19
A22: 20 | B22: 杨金兴 | C22: 2022215343 | D22: 工艺专硕 | E22: 95.8800 | F22: 0.0000 | G22: 0 | H22: 95.8800 | I22: 0.69495383 | J22: 69.49538292 | K22: 84.7625 | L22: 0 | M22: 0 | N22: 84.7625 | O22: 0.6402713387 | P22: 64.02713387 | Q22: 108.1000 | R22: 0 | S22: 0 | T22: 108.1 | U22: 0.9724135015 | V22: 97.24135015 | W22: 68.44220531 | X22: 20
A23: 21 | B23: 王俊帅 | C23: 2022215384 | D23: 工艺专硕 | E23: 106.3800 | F23: 11.0000 | G23: 0 | H23: 117.3800 | I23: 0.85078932 | J23: 85.07893249 | K23: 78.61118 | L23: 0 | M23: 0 | N23: 78.61118 | O23: 0.5938060517 | P23: 59.38060517 | Q23: 102.0000 | R23: 4.6 | S23: 0 | T23: 106.6 | U23: 0.9589202522 | V23: 95.89202522 | W23: 68.17141264 | X23: 21
A24: 22 | B24: 范崇翔 | C24: 202215361 | D24: 工艺专硕 | E24: 95.6000 | F24: 0.0000 | G24: 0 | H24: 95.6000 | I24: 0.69292434 | J24: 69.29243437 | K24: 84.93971 | L24: 0 | M24: 0 | N24: 84.93971 | O24: 0.6416099316 | P24: 64.16099316 | Q24: 100.0000 | R24: 0 | S24: 0 | T24: 100 | U24: 0.8995499552 | V24: 89.95499552 | W24: 67.76668164 | X24: 22
A25: 23 | B25: 王延新 | C25: 2022215349 | D25: 工艺专硕 | E25: 99.7800 | F25: 0.0000 | G25: 0 | H25: 99.7800 | I25: 0.72322166 | J25: 72.32216633 | K25: 83.66875 | L25: 0 | M25: 0 | N25: 83.66875 | O25: 0.6320094684 | P25: 63.20094684 | Q25: 100.5000 | R25: 0 | S25: 0 | T25: 100.5 | U25: 0.9040477049 | V25: 90.40477049 | W25: 67.74557311 | X25: 23
A26: 24 | B26: 闫妍 | C26: 2022215312 | D26: 工艺专硕 | E26: 95.7800 | F26: 0.0000 | G26: 0 | H26: 95.7800 | I26: 0.69422901 | J26: 69.42290129 | K26: 84.13158 | L26: 0 | M26: 0 | N26: 84.13158 | O26: 0.635505552 | P26: 63.5505552 | Q26: 100.5000 | R26: 0 | S26: 0 | T26: 100.5 | U26: 0.9040477049 | V26: 90.40477049 | W26: 67.41044595 | X26: 24
A27: 25 | B27: 陈琪 | C27: 2022215360 | D27: 工艺专硕 | E27: 95.5800 | F27: 0.0000 | G27: 0 | H27: 95.5800 | I27: 0.69277938 | J27: 69.27793804 | K27: 83.94118 | L27: 0 | M27: 0 | N27: 83.94118 | O27: 0.6340673256 | P27: 63.40673256 | Q27: 100.5000 | R27: 0 | S27: 0 | T27: 100.5 | U27: 0.9040477049 | V27: 90.40477049 | W27: 67.28077745 | X27: 25
A28: 26 | B28: 张世豪 | C28: 2022215369 | D28: 工艺专硕 | E28: 99.6400 | F28: 0.0000 | G28: 0 | H28: 99.6400 | I28: 0.72220692 | J28: 72.22069205 | K28: 82.77647 | L28: 0 | M28: 0 | N28: 82.77647 | O28: 0.6252694441 | P28: 62.52694441 | Q28: 100.5000 | R28: 0 | S28: 0 | T28: 100.5 | U28: 0.9040477049 | V28: 90.40477049 | W28: 67.25347655 | X28: 26
A29: 27 | B29: 宋光耀 | C29: 2022215307 | D29: 工艺专硕 | E29: 99.6100 | F29: 0.0000 | G29: 0 | H29: 99.6100 | I29: 0.72198948 | J29: 72.19894757 | K29: 81.16051 | L29: 0 | M29: 0 | N29: 81.16051 | O29: 0.613062951 | P29: 61.3062951 | Q29: 108.1000 | R29: 0 | S29: 0 | T29: 108.1 | U29: 0.9724135015 | V29: 97.24135015 | W29: 67.0783311 | X29: 27
A30: 28 | B30: 张希峰 | C30: 2022215345 | D30: 工艺专硕 | E30: 95.6000 | F30: 0.0000 | G30: 0 | H30: 95.6000 | I30: 0.69292434 | J30: 69.29243437 | K30: 83.24211 | L30: 0 | M30: 0 | N30: 83.24211 | O30: 0.6287867536 | P30: 62.87867536 | Q30: 100.0000 | R30: 0 | S30: 0 | T30: 100 | U30: 0.8995499552 | V30: 89.95499552 | W30: 66.86905918 | X30: 28
A31: 29 | B31: 任爽 | C31: 2022215348 | D31: 工艺专硕 | E31: 100.0400 | F31: 0.0000 | G31: 0 | H31: 100.0400 | I31: 0.72510619 | J31: 72.51061856 | K31: 81.76125 | L31: 0 | M31: 0 | N31: 81.76125 | O31: 0.6176007667 | P31: 61.76007667 | Q31: 100.5000 | R31: 0 | S31: 0 | T31: 100.5 | U31: 0.9040477049 | V31: 90.40477049 | W31: 66.77465443 | X31: 29
A32: 30 | B32: 陈文倩 | C32: 2022215318 | D32: 工艺专硕 | E32: 96.0000 | F32: 0.0000 | G32: 0 | H32: 96.0000 | I32: 0.69582361 | J32: 69.58236087 | K32: 82.03949 | L32: 0 | M32: 0 | N32: 82.03949 | O32: 0.619702511 | P32: 61.9702511 | Q32: 100.5000 | R32: 0 | S32: 0 | T32: 100.5 | U32: 0.9040477049 | V32: 90.40477049 | W32: 66.33612499 | X32: 30
A33: 31 | B33: 吴熙 | C33: 2022215380 | D33: 工艺专硕 | E33: 95.4800 | F33: 0.0000 | G33: 0 | H33: 95.4800 | I33: 0.69205456 | J33: 69.20545642 | K33: 81.88889 | L33: 0 | M33: 0 | N33: 81.88889 | O33: 0.6185649223 | P33: 61.85649223 | Q33: 100.0000 | R33: 0 | S33: 0 | T33: 100 | U33: 0.8995499552 | V33: 89.95499552 | W33: 66.13613539 | X33: 31
A34: 32 | B34: 张峰铭 | C34: 2022215311 | D34: 工艺专硕 | E34: 95.5600 | F34: 0.0000 | G34: 0 | H34: 95.5600 | I34: 0.69263442 | J34: 69.26344172 | K34: 78.985 | L34: 0 | M34: 0 | N34: 78.985 | O34: 0.5966297795 | P34: 59.66297795 | Q34: 100.5000 | R34: 0 | S34: 0 | T34: 100.5 | U34: 0.9040477049 | V34: 90.40477049 | W34: 64.65724996 | X34: 32
A35: 33 | B35: 樊嘉琛 | C35: 2022215344 | D35: 工艺专硕 | E35: 95.8000 | F35: 0.0000 | G35: 0 | H35: 95.8000 | I35: 0.69437398 | J35: 69.43739762 | K35: 78.70526 | L35: 0 | M35: 0 | N35: 78.70526 | O35: 0.5945167047 | P35: 59.45167047 | Q35: 100.5000 | R35: 0 | S35: 0 | T35: 100.5 | U35: 0.9040477049 | V35: 90.40477049 | W35: 64.5441259 | X35: 33
A36: 34 | B36: 封亚楠 | C36: 2022215372 | D36: 工艺专硕 | E36: 95.8600 | F36: 0.0000 | G36: 0 | H36: 95.8600 | I36: 0.69480887 | J36: 69.4808866 | K36: 76.73 | L36: 0 | M36: 0 | N36: 76.73 | O36: 0.5795961636 | P36: 57.95961636 | Q36: 108.1667 | R36: 3 | S36: 0 | T36: 111.1667 | U36: 1 | V36: 100 | W36: 64.46790877 | X36: 34
A37: 35 | B37: 马德利 | C37: 2022215306 | D37: 工艺专硕 | E37: 95.7200 | F37: 0.0000 | G37: 0 | H37: 95.7200 | I37: 0.69379412 | J37: 69.37941232 | K37: 77.26975 | L37: 0 | M37: 0 | N37: 77.26975 | O37: 0.5836732785 | P37: 58.36732785 | Q37: 100.5000 | R37: 0 | S37: 0 | T37: 100.5 | U37: 0.9040477049 | V37: 90.40477049 | W37: 63.77348901 | X37: 35

Sheet 工程学硕
A1: 序号 | B1: 学号 | C1: 姓名 | D1: 方向 | E1: 德育成绩 | K1: 智育成绩 | Q1: 文体成绩 | W1: 总分 | X1: 排名
E2: 基础分 | F2: 奖励分 | G2: 惩罚分 | H2: 个人德育总分 | I2: 个人德育总分/基准 | J2: 德育总成绩 | K2: 基础分 | L2: 奖励分 | M2: 惩罚分 | N2: 个人智育总分 | O2: 个人智育总分/基准 | P2: 智育总成绩 | Q2: 基础分 | R2: 奖励分 | S2: 惩罚分 | T2: 个人文体总分 | U2: 个人文体总分/基准 | V2: 文体总成绩
A3: 1 | B3: 2022210608 | C3: 赵婷婷 | D3: 工程学硕 | E3: 100.537 | F3: 8.5 | G3: 0 | H3: =E3+F3+G3 -> 109.037 | I3: =H3/128.562 -> 0.8481277516 | J3: =100*I3 -> 84.81277516 | K3: 86.3824 | L3: 24.33 | M3: 0 | N3: =K3+L3+M3 -> 110.71235 | O3: =N3/110.71235 -> 1 | P3: =100*O3 -> 100 | Q3: 105.37 | R3: 6.67 | S3: 0 | T3: =Q3+R3+S3 -> 112.04 | U3: =T3/116.044 -> 0.9654958464 | V3: =U3*100 -> 96.54958464 | W3: =J3*0.2+P3*0.7+V3*0.1 -> 96.6175135 | X3: =RANK(W3,$W$2:$W$33) -> 1
A4: 2 | B4: 2022210539 | C4: 陈行健 | D4: 工程学硕 | E4: 99.502 | F4: 9.5 | G4: 0 | H4: 109.002 | I4: 0.8478555094 | J4: 84.78555094 | K4: 91.0476 | L4: 7.94 | M4: 0 | N4: 98.98762 | O4: 0.8940973613 | P4: 89.40973613 | Q4: 101.5 | R4: 2 | S4: 0 | T4: 103.5 | U4: 0.8919030712 | V4: 89.19030712 | W4: 88.46295619 | X4: 2
A5: 3 | B5: 2022210502 | C5: 朱金铸 | D5: 工程学硕 | E5: 104.862 | F5: 23.7 | G5: 0 | H5: 128.562 | I5: 1 | J5: 100 | K5: 85.7138 | L5: 0.3 | M5: 0 | N5: 86.01381 | O5: 0.7769125125 | P5: 77.69125125 | Q5: 102 | R5: 2 | S5: 0 | T5: 104 | U5: 0.8962117817 | V5: 89.62117817 | W5: 83.34599369 | X5: 3
A6: 4 | B6: 2022210560 | C6: 刘明明 | D6: 工程学硕 | E6: 103.786 | F6: 18.5 | G6: 0 | H6: 122.286 | I6: 0.9511830868 | J6: 95.11830868 | K6: 87.0313 | L6: 0 | M6: 0 | N6: 87.03125 | O6: 0.7861024538 | P6: 78.61024538 | Q6: 104.67 | R6: 0 | S6: 0 | T6: 104.67 | U6: 0.9019854538 | V6: 90.19854538 | W6: 83.07068804 | X6: 4
A7: 5 | B7: 2022210544 | C7: 李雨晴 | D7: 工程学硕 | E7: 95.474 | F7: 8 | G7: 0 | H7: 103.474 | I7: 0.8048568006 | J7: 80.48568006 | K7: 90.6711 | L7: 0 | M7: 0 | N7: 90.67105 | O7: 0.8189786415 | P7: 81.89786415 | Q7: 100 | R7: 0 | S7: 0 | T7: 100 | U7: 0.8617420978 | V7: 86.17420978 | W7: 82.0430619 | X7: 5
A8: 6 | B8: 2022210525 | C8: 李延辉 | D8: 工程学硕 | E8: 101.726 | F8: 14.8 | G8: 0 | H8: 116.526 | I8: 0.9063798012 | J8: 90.63798012 | K8: 84.7388 | L8: 0 | M8: 0 | N8: 84.73875 | O8: 0.7653956401 | P8: 76.53956401 | Q8: 108.004 | R8: 8.04 | S8: 0 | T8: 116.044 | U8: 1 | V8: 100 | W8: 81.70529083 | X8: 6
A9: 7 | B9: 2022210501 | C9: 张洪业 | D9: 工程学硕 | E9: 93.208 | F9: 0.5 | G9: 0 | H9: 93.708 | I9: 0.7288934522 | J9: 72.88934522 | K9: 91.1905 | L9: 0.6 | M9: 0 | N9: 91.79048 | O9: 0.8290897989 | P9: 82.90897989 | Q9: 105 | R9: 0 | S9: 0 | T9: 105 | U9: 0.9048292027 | V9: 90.48292027 | W9: 81.662447 | X9: 7
A10: 8 | B10: 2022210505 | C10: 郝一博 | D10: 工程学硕 | E10: 104.153 | F10: 15 | G10: 0 | H10: 119.153 | I10: 0.9268135219 | J10: 92.68135219 | K10: 85.7200 | L10: 0 | M10: 0 | N10: 85.72000 | O10: 0.7742586983 | P10: 77.42586983 | Q10: 102 | R10: 0 | S10: 0 | T10: 102 | U10: 0.8789769398 | V10: 87.89769398 | W10: 81.52414872 | X10: 8
A11: 9 | B11: 2022210575 | C11: 李欣磊 | D11: 工程学硕 | E11: 102.277 | F11: 0 | G11: 0 | H11: 102.277 | I11: 0.7955461178 | J11: 79.55461178 | K11: 88.7941 | L11: 0 | M11: 0 | N11: 88.79412 | O11: 0.802025429 | P11: 80.2025429 | Q11: 106.67 | R11: 2 | S11: 0 | T11: 108.67 | U11: 0.9364551377 | V11: 93.64551377 | W11: 81.41725376 | X11: 9
A12: 10 | B12: 2022210595 | C12: 吴玥函 | D12: 工程学硕 | E12: 101.579 | F12: 4 | G12: 0 | H12: 105.579 | I12: 0.8212302235 | J12: 82.12302235 | K12: 84.0700 | L12: 5 | M12: 0 | N12: 89.07000 | O12: 0.8045172919 | P12: 80.45172919 | Q12: 100 | R12: 0 | S12: 0 | T12: 100 | U12: 0.8617420978 | V12: 86.17420978 | W12: 81.35823588 | X12: 10
A13: 11 | B13: 2022210618 | C13: 胡渤 | D13: 工程学硕 | E13: 94.072 | F13: 9 | G13: 0 | H13: 103.072 | I13: 0.8017299046 | J13: 80.17299046 | K13: 89.2838 | L13: 0.05 | M13: 0 | N13: 89.33375 | O13: 0.8068995916 | P13: 80.68995916 | Q13: 100 | R13: 0 | S13: 0 | T13: 100 | U13: 0.8617420978 | V13: 86.17420978 | W13: 81.13499048 | X13: 11
A14: 12 | B14: 2022210626 | C14: 武立宁 | D14: 工程学硕 | E14: 102.062 | F14: 8 | G14: 0 | H14: 110.062 | I14: 0.8561005585 | J14: 85.61005585 | K14: 84.0529 | L14: 3 | M14: 0 | N14: 87.05294 | O14: 0.7862983669 | P14: 78.62983669 | Q14: 102 | R14: 0 | S14: 0 | T14: 102 | U14: 0.8789769398 | V14: 87.89769398 | W14: 80.95266625 | X14: 12
A15: 13 | B15: 2022210552 | C15: 高龙燕 | D15: 工程学硕 | E15: 97.918 | F15: 6 | G15: 0 | H15: 103.918 | I15: 0.8083103872 | J15: 80.83103872 | K15: 86.5944 | L15: 0.125 | M15: 0 | N15: 86.71944 | O15: 0.7832860562 | P15: 78.32860562 | Q15: 100 | R15: 11 | S15: 0 | T15: 111 | U15: 0.9565337286 | V15: 95.65337286 | W15: 80.56156896 | X15: 13
A16: 14 | B16: 2022210524 | C16: 蒋梦瑶 | D16: 工程学硕 | E16: 97.712 | F16: 6 | G16: 0 | H16: 103.712 | I16: 0.8067080475 | J16: 80.67080475 | K16: 84.5263 | L16: 3 | M16: 0 | N16: 87.52625 | O16: 0.7905734997 | P16: 79.05734997 | Q16: 104.67 | R16: 0.5 | S16: 0 | T16: 105.17 | U16: 0.9062941643 | V16: 90.62941643 | W16: 80.53724757 | X16: 14
A17: 15 | B17: 2022210516 | C17: 梁爽爽 | D17: 工程学硕 | E17: 98.25 | F17: 5 | G17: 0 | H17: 103.25 | I17: 0.8031144506 | J17: 80.31144506 | K17: 87.1889 | L17: 0 | M17: 0 | N17: 87.18889 | O17: 0.7875263238 | P17: 78.75263238 | Q17: 100 | R17: 0 | S17: 0 | T17: 100 | U17: 0.8617420978 | V17: 86.17420978 | W17: 79.80655266 | X17: 15
A18: 16 | B18: 2022210527 | C18: 王贵方 | D18: 工程学硕 | E18: 95.131 | F18: 0.5 | G18: 0 | H18: 95.631 | I18: 0.7438512158 | J18: 74.38512158 | K18: 88.3938 | L18: 0.25 | M18: 0 | N18: 88.64375 | O18: 0.8006672246 | P18: 80.06672246 | Q18: 100.5 | R18: 0 | S18: 0 | T18: 100.5 | U18: 0.8660508083 | V18: 86.60508083 | W18: 79.58423812 | X18: 16
A19: 17 | B19: 2022210574 | C19: 韩雨芹 | D19: 工程学硕 | E19: 100.487 | F19: 0 | G19: 0 | H19: 100.487 | I19: 0.7816228746 | J19: 78.16228746 | K19: 86.9471 | L19: 0 | M19: 0 | N19: 86.94706 | O19: 0.7853420147 | P19: 78.53420147 | Q19: 102 | R19: 2 | S19: 0 | T19: 104 | U19: 0.8962117817 | V19: 89.62117817 | W19: 79.56851634 | X19: 17
A20: 18 | B20: 2022210515 | C20: 李重燃 | D20: 工程学硕 | E20: 104.677 | F20: 8 | G20: 0 | H20: 112.677 | I20: 0.876440939 | J20: 87.6440939 | K20: 82.3533 | L20: 0 | M20: 0 | N20: 82.35333 | O20: 0.7438495344 | P20: 74.38495344 | Q20: 104.67 | R20: 3.33 | S20: 0 | T20: 108 | U20: 0.9306814657 | V20: 93.06814657 | W20: 78.90510084 | X20: 18
A21: 19 | B21: 2022210569 | C21: 王旖旎 | D21: 工程学硕 | E21: 93.509 | F21: 0 | G21: 0 | H21: 93.509 | I21: 0.7273455609 | J21: 72.73455609 | K21: 88.0313 | L21: 0 | M21: 0 | N21: 88.03125 | O21: 0.7951348698 | P21: 79.51348698 | Q21: 100 | R21: 0.5 | S21: 0 | T21: 100.5 | U21: 0.8660508083 | V21: 86.60508083 | W21: 78.86686019 | X21: 19
A22: 20 | B22: 2022210540 | C22: 皮婧婧 | D22: 工程学硕 | E22: 93.509 | F22: 0.5 | G22: 0 | H22: 94.009 | I22: 0.731234735 | J22: 73.1234735 | K22: 87.0000 | L22: 0.83 | M22: 0 | N22: 87.83000 | O22: 0.7933170961 | P22: 79.33170961 | Q22: 100.5 | R22: 0.5 | S22: 0 | T22: 101 | U22: 0.8703595188 | V22: 87.03595188 | W22: 78.86048661 | X22: 20
A23: 21 | B23: 2022210648 | C23: 包梦慧 | D23: 工程学硕 | E23: 93.579 | F23: 0 | G23: 0 | H23: 93.579 | I23: 0.7278900453 | J23: 72.78900453 | K23: 87.0688 | L23: 0 | M23: 0 | N23: 87.06875 | O23: 0.7864411694 | P23: 78.64411694 | Q23: 100 | R23: 0 | S23: 0 | T23: 100 | U23: 0.8617420978 | V23: 86.17420978 | W23: 78.22610374 | X23: 21
A24: 22 | B24: 2022210598 | C24: 马晓存 | D24: 工程学硕 | E24: 95.292 | F24: 3 | G24: 0 | H24: 98.292 | I24: 0.7645494003 | J24: 76.45494003 | K24: 85.5056 | L24: 0 | M24: 0 | N24: 85.50556 | O24: 0.772321787 | P24: 77.2321787 | Q24: 100 | R24: 0 | S24: 0 | T24: 100 | U24: 0.8617420978 | V24: 86.17420978 | W24: 77.97093408 | X24: 22
A25: 23 | B25: 2022210554 | C25: 赵波 | D25: 工程学硕 | E25: 95.222 | F25: 0 | G25: 0 | H25: 95.222 | I25: 0.7406698713 | J25: 74.06698713 | K25: 81.6111 | L25: 4.17 | M25: 0 | N25: 85.78111 | O25: 0.7748106693 | P25: 77.48106693 | Q25: 100 | R25: 0 | S25: 0 | T25: 100 | U25: 0.8617420978 | V25: 86.17420978 | W25: 77.66756525 | X25: 23
A26: 24 | B26: 2022210649 | C26: 李雅丽 | D26: 工程学硕 | E26: 94.191 | F26: 0 | G26: 0 | H26: 94.191 | I26: 0.7326503944 | J26: 73.26503944 | K26: 85.5313 | L26: 0 | M26: 0 | N26: 85.53125 | O26: 0.7725538298 | P26: 77.25538298 | Q26: 100 | R26: 0 | S26: 0 | T26: 100 | U26: 0.8617420978 | V26: 86.17420978 | W26: 77.34919695 | X26: 24
A27: 25 | B27: 2022210559 | C27: 胡冰阳 | D27: 工程学硕 | E27: 99.362 | F27: 2 | G27: 0 | H27: 101.362 | I27: 0.7884289292 | J27: 78.84289292 | K27: 81.2313 | L27: 0 | M27: 0 | N27: 81.23125 | O27: 0.7337144411 | P27: 73.37144411 | Q27: 106.67 | R27: 8.04 | S27: 0 | T27: 114.71 | U27: 0.9885043604 | V27: 98.85043604 | W27: 77.01363306 | X27: 25
A28: 26 | B28: 2022210627 | C28: 赵荣鹏 | D28: 工程学硕 | E28: 93.404 | F28: 0 | G28: 0 | H28: 93.404 | I28: 0.7265288343 | J28: 72.65288343 | K28: 85.1618 | L28: 0 | M28: 0 | N28: 85.16176 | O28: 0.7692164424 | P28: 76.92164424 | Q28: 100 | R28: 0 | S28: 0 | T28: 100 | U28: 0.8617420978 | V28: 86.17420978 | W28: 76.99314864 | X28: 26
A29: 27 | B29: 2022210507 | C29: 汪雪敏 | D29: 工程学硕 | E29: 95.222 | F29: 4.6 | G29: 0 | H29: 99.822 | I29: 0.776450273 | J29: 77.6450273 | K29: 83.0350 | L29: 0 | M29: 0 | N29: 83.03500 | O29: 0.7500066614 | P29: 75.00066614 | Q29: 100 | R29: 0 | S29: 0 | T29: 100 | U29: 0.8617420978 | V29: 86.17420978 | W29: 76.64689274 | X29: 27
A30: 28 | B30: 2022210545 | C30: 王刚 | D30: 工程学硕 | E30: 95.691 | F30: 7.5 | G30: 0 | H30: 103.191 | I30: 0.8026555281 | J30: 80.26555281 | K30: 79.4105 | L30: 0 | M30: 0 | N30: 79.41053 | O30: 0.7172689406 | P30: 71.72689406 | Q30: 108 | R30: 6.7 | S30: 0 | T30: 114.7 | U30: 0.9884181862 | V30: 98.84181862 | W30: 76.14611827 | X30: 28
A31: 29 | B31: 2022210611 | C31: 牛苗苗 | D31: 工程学硕 | E31: 97.887 | F31: 0 | G31: 0 | H31: 97.887 | I31: 0.7613991693 | J31: 76.13991693 | K31: 82.1458 | L31: 0 | M31: 0 | N31: 82.14583 | O31: 0.7419753081 | P31: 74.19753081 | Q31: 100 | R31: 0 | S31: 0 | T31: 100 | U31: 0.8617420978 | V31: 86.17420978 | W31: 75.78367593 | X31: 29
A32: 30 | B32: 2022210619 | C32: 占彬 | D32: 工程学硕 | E32: 93.425 | F32: 0 | G32: 0 | H32: 93.425 | I32: 0.7266921796 | J32: 72.66921796 | K32: 83.1696 | L32: 0 | M32: 0 | N32: 83.16964 | O32: 0.7512227859 | P32: 75.12227859 | Q32: 100 | R32: 0 | S32: 0 | T32: 100 | U32: 0.8617420978 | V32: 86.17420978 | W32: 75.73685958 | X32: 30
A33: 31 | B33: 2022210636 | C33: 刘雪 | D33: 工程学硕 | E33: 93.439 | F33: 2 | G33: 0 | H33: 95.439 | I33: 0.7423577729 | J33: 74.23577729 | K33: 81.5235 | L33: 0 | M33: 0 | N33: 81.52353 | O33: 0.7363544356 | P33: 73.63544356 | Q33: 100.5 | R33: 0 | S33: 0 | T33: 100.5 | U33: 0.8660508083 | V33: 86.60508083 | W33: 75.05247403 | X33: 31
A34: 32 | B34: 2022210637 | C34: 王琦 | D34: 工程学硕 | E34: 97.713 | F34: 8.25 | G34: 0 | H34: 105.963 | I34: 0.8242171093 | J34: 82.42171093 | K34: 77.5618 | L34: 0 | M34: 0 | N34: 77.56176 | O34: 0.7005700809 | P34: 70.05700809 | Q34: 101 | R34: 0 | S34: 0 | T34: 101 | U34: 0.8703595188 | V34: 87.03595188 | W34: 74.22784304 | X34: =RANK(W34,$W$2:$W$34) -> 32

Sheet 工程专硕
A1: 序号 | B1: 姓名 | C1: 方向 | D1: 德育部分 | J1: 智育部分 | P1: 文体部分 | V1: 总分 | W1: 排名
D2: 基础分 | E2: 奖励分 | F2: 惩罚分 | G2: 个人德育总分 | H2: 个人德育总分/基准 | I2: 德育总成绩 | J2: 基础分 | K2: 奖励分 | L2: 惩罚分 | M2: 个人智育总分 | N2: 个人智育总分/基准 | O2: 智育总成绩 | P2: 基础分 | Q2: 奖励分 | R2: 惩罚分 | S2: 个人文体总分 | T2: 个人文体总分/基准 | U2: 文体总成绩
A3: 1 | B3: 魏学洋 | C3: 化学工程专硕 | D3: 95 | E3: 9.67 | F3: 0 | G3: 104.67 | H3: =G3/131.5 -> 0.7959695817 | I3: =H3*100 -> 79.59695817 | J3: 87.09 | K3: 9.791667 | L3: 0 | M3: 96.881667 | N3: =M3/96.881667 -> 1 | O3: =N3*100 -> 100 | P3: 100 | Q3: 7.67 | R3: 0 | S3: 107.67 | T3: =S3/117.5 -> 0.9163404255 | U3: =T3*100 -> 91.63404255 | V3: =U3*0.1+O3*0.7+I3*0.2 -> 95.08279589 | W3: 1
A4: 2 | B4: 赵宏宇 | C4: 化学工程专硕 | D4: 95 | E4: 34.8 | F4: 0 | G4: 129.8 | H4: 0.9870722433 | I4: 98.70722433 | J4: 89.54 | K4: 0 | L4: 0 | M4: 89.54 | N4: 0.9242202655 | O4: 92.42202655 | P4: 100 | Q4: 15.5 | R4: 0 | S4: 115.5 | T4: 0.9829787234 | U4: 98.29787234 | V4: 94.26665069 | W4: 2
A5: 3 | B5: 董丽 | C5: 化学工程专硕 | D5: 95.7 | E5: 35.8 | F5: 0 | G5: 131.5 | H5: 1 | I5: 100 | J5: 87.58 | K5: 0 | L5: 0 | M5: 87.58 | N5: 0.9039893998 | O5: 90.39893998 | P5: 100 | Q5: 6.17 | R5: 0 | S5: 106.17 | T5: 0.9035744681 | U5: 90.35744681 | V5: 92.31500266 | W5: 3
A6: 4 | B6: 齐保辉 | C6: 化学工程专硕 | D6: 95.7 | E6: 10.13 | F6: 0 | G6: 105.83 | H6: 0.8047908745 | I6: 80.47908745 | J6: 85.26 | K6: 6.875 | L6: 0 | M6: 92.135 | N6: 0.9510055189 | O6: 95.10055189 | P6: 100 | Q6: 8.5 | R6: 0 | S6: 108.5 | T6: 0.9234042553 | U6: 92.34042553 | V6: 91.90024637 | W6: 4
A7: 5 | B7: 宋艳雯 | C7: 化学工程专硕 | D7: 95 | E7: 5 | F7: 0 | G7: 100 | H7: 0.7604562738 | I7: 76.04562738 | J7: 90.99 | K7: 0.3 | L7: 0 | M7: 91.29 | N7: 0.9422835385 | O7: 94.22835385 | P7: 100 | Q7: 0.5 | R7: 0 | S7: 100.5 | T7: 0.8553191489 | U7: 85.53191489 | V7: 89.72216466 | W7: 5
A8: 6 | B8: 卢芳芳 | C8: 化学工程专硕 | D8: 95 | E8: 5.5 | F8: 0 | G8: 100.5 | H8: 0.7642585551 | I8: 76.42585551 | J8: 90.65 | K8: 0.1 | L8: 0 | M8: 90.75 | N8: 0.9367097286 | O8: 93.67097286 | P8: 100 | Q8: 3.83 | R8: 0 | S8: 103.83 | T8: 0.8836595745 | U8: 88.36595745 | V8: 89.69144785 | W8: 6
A9: 7 | B9: 王宁宁 | C9: 化学工程专硕 | D9: 95.7 | E9: 4 | F9: 0 | G9: 99.7 | H9: 0.7581749049 | I9: 75.81749049 | J9: 87.52 | K9: 3.333 | L9: 0 | M9: 90.853 | N9: 0.9377728812 | O9: 93.77728812 | P9: 100 | Q9: 0.5 | R9: 0 | S9: 100.5 | T9: 0.8553191489 | U9: 85.53191489 | V9: 89.36079127 | W9: 7
A10: 8 | B10: 戎清 | C10: 化学工程专硕 | D10: 95.7 | E10: 4 | F10: 0 | G10: 99.7 | H10: 0.7581749049 | I10: 75.81749049 | J10: 89.09 | K10: 1.5 | L10: 0 | M10: 90.59 | N10: 0.9350582293 | O10: 93.50582293 | P10: 100 | Q10: 1 | R10: 0 | S10: 101 | T10: 0.8595744681 | U10: 85.95744681 | V10: 89.21331883 | W10: 8
A11: 9 | B11: 史天乐 | C11: 化学工程专硕 | D11: 95.7 | E11: 12.8 | F11: 0 | G11: 108.5 | H11: 0.825095057 | I11: 82.5095057 | J11: 87.56 | K11: 0.4 | L11: 0 | M11: 87.96 | N11: 0.9079117105 | O11: 90.79117105 | P11: 100 | Q11: 1.5 | R11: 0 | S11: 101.5 | T11: 0.8638297872 | U11: 86.38297872 | V11: 88.69401875 | W11: 9
A12: 10 | B12: 屈光仁 | C12: 化学工程专硕 | D12: 95.7 | E12: 0 | F12: 0 | G12: 95.7 | H12: 0.727756654 | I12: 72.7756654 | J12: 84.42 | K12: 5.7 | L12: 0 | M12: 90.12 | N12: 0.9302069503 | O12: 93.02069503 | P12: 100 | Q12: 4.33 | R12: 0 | S12: 104.33 | T12: 0.8879148936 | U12: 88.79148936 | V12: 88.54876854 | W12: 10
A13: 11 | B13: 陈巧玲 | C13: 化学工程专硕 | D13: 95.7 | E13: 4 | F13: 0 | G13: 99.7 | H13: 0.7581749049 | I13: 75.81749049 | J13: 87.58 | K13: 0 | L13: 0 | M13: 87.58 | N13: 0.9039893998 | O13: 90.39893998 | P13: 100 | Q13: 15.5 | R13: 0 | S13: 115.5 | T13: 0.9829787234 | U13: 98.29787234 | V13: 88.27254332 | W13: 11
A14: 12 | B14: 王延硕 | C14: 化学工程专硕 | D14: 95.7 | E14: 13.47 | F14: 0 | G14: 109.17 | H14: 0.8301901141 | I14: 83.01901141 | J14: 86.1 | K14: 0 | L14: 0 | M14: 86.1 | N14: 0.8887130317 | O14: 88.87130317 | P14: 100 | Q14: 6.17 | R14: 0 | S14: 106.17 | T14: 0.9035744681 | U14: 90.35744681 | V14: 87.84945918 | W14: 12
A15: 13 | B15: 张藤铧 | C15: 化学工程专硕 | D15: 95 | E15: 4 | F15: 0 | G15: 99 | H15: 0.752851711 | I15: 75.2851711 | J15: 87.37 | K15: 1.5125 | L15: 0 | M15: 88.8825 | N15: 0.9174336358 | O15: 91.74336358 | P15: 100 | Q15: 0.5 | R15: 0 | S15: 100.5 | T15: 0.8553191489 | U15: 85.53191489 | V15: 87.83058022 | W15: 13
A16: 14 | B16: 关晶 | C16: 化学工程专硕 | D16: 95.7 | E16: 8 | F16: 0 | G16: 103.7 | H16: 0.7885931559 | I16: 78.85931559 | J16: 86.04 | K16: 0 | L16: 0 | M16: 86.04 | N16: 0.8880937195 | O16: 88.80937195 | P16: 100 | Q16: 11 | R16: 0 | S16: 111 | T16: 0.9446808511 | U16: 94.46808511 | V16: 87.385232 | W16: 14
A17: 15 | B17: 王凤凤 | C17: 化学工程专硕 | D17: 95 | E17: 4.5 | F17: 0 | G17: 99.5 | H17: 0.7566539924 | I17: 75.66539924 | J17: 86.99 | K17: 0 | L17: 0 | M17: 86.99 | N17: 0.8978994963 | O17: 89.78994963 | P17: 100 | Q17: 0.5 | R17: 0 | S17: 100.5 | T17: 0.8553191489 | U17: 85.53191489 | V17: 86.53923608 | W17: 15
A18: 16 | B18: 李宝隆 | C18: 化学工程专硕 | D18: 95 | E18: 19.4 | F18: 0 | G18: 114.4 | H18: 0.8699619772 | I18: 86.99619772 | J18: 82.93 | K18: 0 | L18: 0 | M18: 82.93 | N18: 0.8559927029 | O18: 85.59927029 | P18: 100 | Q18: 5.67 | R18: 0 | S18: 105.67 | T18: 0.8993191489 | U18: 89.93191489 | V18: 86.31192024 | W18: 16
A19: 17 | B19: 李逸飞 | C19: 化学工程专硕 | D19: 95.7 | E19: 3 | F19: 0 | G19: 98.7 | H19: 0.7505703422 | I19: 75.05703422 | J19: 86.4 | K19: 0 | L19: 0 | M19: 86.4 | N19: 0.8918095928 | O19: 89.18095928 | P19: 100 | Q19: 3 | R19: 0 | S19: 103 | T19: 0.8765957447 | U19: 87.65957447 | V19: 86.20403579 | W19: 17
A20: 18 | B20: 王琳 | C20: 化学工程专硕 | D20: 95 | E20: 0 | F20: 0 | G20: 95 | H20: 0.7224334601 | I20: 72.24334601 | J20: 84.38 | K20: 0 | L20: 0 | M20: 84.38 | N20: 0.8709594148 | O20: 87.09594148 | P20: 100 | Q20: 8.5 | R20: 0 | S20: 108.5 | T20: 0.9234042553 | U20: 92.34042553 | V20: 84.64987079 | W20: 18
A21: 19 | B21: 徐文磊 | C21: 化学工程专硕 | D21: 95 | E21: 0 | F21: 0 | G21: 95 | H21: 0.7224334601 | I21: 72.24334601 | J21: 84.38 | K21: 0 | L21: 0 | M21: 84.38 | N21: 0.8709594148 | O21: 87.09594148 | P21: 100 | Q21: 0.5 | R21: 0 | S21: 100.5 | T21: 0.8553191489 | U21: 85.53191489 | V21: 83.96901973 | W21: 19
A22: 20 | B22: 吕琛 | C22: 化学工程专硕 | D22: 95 | E22: 3 | F22: 0 | G22: 98 | H22: 0.7452471483 | I22: 74.52471483 | J22: 82.58 | K22: 0 | L22: 0 | M22: 82.58 | N22: 0.8523800483 | O22: 85.23800483 | P22: 100 | Q22: 5.17 | R22: 0 | S22: 105.17 | T22: 0.8950638298 | U22: 89.50638298 | V22: 83.52218465 | W22: 20
A23: 21 | B23: 边昊 | C23: 化学工程专硕 | D23: 95.7 | E23: 4 | F23: 0 | G23: 99.7 | H23: 0.7581749049 | I23: 75.81749049 | J23: 81.62 | K23: 0 | L23: 0 | M23: 81.62 | N23: 0.8424710529 | O23: 84.24710529 | P23: 100 | Q23: 8.5 | R23: 0 | S23: 108.5 | T23: 0.9234042553 | U23: 92.34042553 | V23: 83.37051435 | W23: 21
A24: 22 | B24: 张耀森 | C24: 化学工程专硕 | D24: 95.7 | E24: 5.67 | F24: 0 | G24: 101.37 | H24: 0.7708745247 | I24: 77.08745247 | J24: 78.66 | K24: 0 | L24: 0 | M24: 78.66 | N24: 0.8119183168 | O24: 81.19183168 | P24: 100 | Q24: 17.5 | R24: 0 | S24: 117.5 | T24: 1 | U24: 100 | V24: 82.25177267 | W24: 22
A25: 23 | B25: 王鹏 | C25: 化学工程专硕 | D25: 95 | E25: 0 | F25: 0 | G25: 95 | H25: 0.7224334601 | I25: 72.24334601 | J25: 80.71 | K25: 0 | L25: 0 | M25: 80.71 | N25: 0.8330781509 | O25: 83.30781509 | P25: 100 | Q25: 0.5 | R25: 0 | S25: 100.5 | T25: 0.8553191489 | U25: 85.53191489 | V25: 81.31733125 | W25: 23
A26: 24 | B26: 王程 | C26: 化学工程专硕 | D26: 95 | E26: 0 | F26: 0 | G26: 95 | H26: 0.7224334601 | I26: 72.24334601 | J26: 80.6 | K26: 0 | L26: 0 | M26: 80.6 | N26: 0.8319427452 | O26: 83.19427452 | P26: 100 | Q26: 0.5 | R26: 0 | S26: 100.5 | T26: 0.8553191489 | U26: 85.53191489 | V26: 81.23785285 | W26: 24
A27: 25 | B27: 邵瀚锋 | C27: 化学工程专硕 | D27: 95 | E27: 0 | F27: 0 | G27: 95 | H27: 0.7224334601 | I27: 72.24334601 | J27: 79.82 | K27: 0 | L27: 0 | M27: 79.82 | N27: 0.8238916863 | O27: 82.38916863 | P27: 100 | Q27: 0.5 | R27: 0 | S27: 100.5 | T27: 0.8553191489 | U27: 85.53191489 | V27: 80.67427873 | W27: 25
A28: 26 | B28: 刘浩天 | C28: 化学工程专硕 | D28: 95 | E28: 4.4 | F28: 0 | G28: 99.4 | H28: 0.7558935361 | I28: 75.58935361 | J28: 76.84 | K28: 0 | L28: 0 | M28: 76.84 | N28: 0.7931325129 | O28: 79.31325129 | P28: 100 | Q28: 0.5 | R28: 0 | S28: 100.5 | T28: 0.8553191489 | U28: 85.53191489 | V28: 79.19033811 | W28: 26

Sheet 催化学硕
A1: 序号 | B1: 学号 | C1: 姓名 | D1: 方向 | E1: 德育成绩 | K1: 智育成绩 | Q1: 文体成绩 | W1: 总分 | X1: 排名
E2: 基础分 | F2: 奖励分 | G2: 惩罚分 | H2: 个人德育总分 | I2: 个人德育总分/基准 | J2: 德育总成绩 | K2: 基础分 | L2: 奖励分 | M2: 惩罚分 | N2: 个人智育总分 | O2: 个人智育总分/基准 | P2: 智育总成绩 | Q2: 基础分 | R2: 奖励分 | S2: 惩罚分 | T2: 个人文体总分 | U2: 个人文体总分/基准 | V2: 文体总成绩
A3: 1 | B3: 2022210513 | C3: 王玲珑 | D3: 催化学硕 | E3: 100.9513514 | F3: 8.60 | G3: 0 | H3: =E3+F3 -> 109.5513514 | I3: =H3/122.7919 -> 0.8921708305 | J3: =I3*100 -> 89.21708305 | K3: 86.17 | L3: 20 | M3: 0 | N3: =K3+L3 -> 106.17 | O3: =N3/106.17 -> 1 | P3: =O3*100 -> 100 | Q3: 100 | R3: 0 | S3: 0 | T3: =Q3+R3+S3 -> 100 | U3: =T3/125 -> 0.8 | V3: =U3*100 -> 80 | W3: =J3*0.2+P3*0.7+V3*0.1 -> 95.84341661 | X3: 1
A4: 2 | B4: 2022210512 | C4: 娄颖洁 | D4: 催化学硕 | E4: 104.0918919 | F4: 10.00 | G4: 0 | H4: 114.0918919 | I4: 0.9291483551 | J4: 92.91483551 | K4: 91.38 | L4: 6 | M4: 0 | N4: 97.38 | O4: 0.9172082509 | P4: 91.72082509 | Q4: 103.33 | R4: 0 | S4: 0 | T4: 103.33 | U4: 0.82664 | V4: 82.664 | W4: 91.05394467 | X4: 2
A5: 3 | B5: 2022210534 | C5: 李章明 | D5: 催化学硕 | E5: 101.9324324 | F5: 5.00 | G5: 0 | H5: 106.9324324 | I5: 0.8708427217 | J5: 87.08427217 | K5: 91.79 | L5: 6.1429 | M5: 0 | N5: 97.9329 | O5: 0.9224159367 | P5: 92.24159367 | Q5: 100 | R5: 0 | S5: 0 | T5: 100 | U5: 0.8 | V5: 80 | W5: 89.98597 | X5: 3
A6: 4 | B6: 2022210650 | C6: 王鑫雨 | D6: 催化学硕 | E6: 102.5213514 | F6: =3+5 -> 8.00 | G6: 0 | H6: 110.5213514 | I6: 0.9000703743 | J6: 90.00703743 | K6: 89.72 | L6: 5 | M6: 0 | N6: 94.72 | O6: 0.8921540925 | P6: 89.21540925 | Q6: 107.3 | R6: 0 | S6: 0 | T6: 107.3 | U6: 0.8584 | V6: 85.84 | W6: 89.03619396 | X6: 4
A7: 5 | B7: 2022210542 | C7: 宋杨 | D7: 催化学硕 | E7: 98.95135135 | F7: 0.00 | G7: 0 | H7: 98.95135135 | I7: 0.8058459178 | J7: 80.58459178 | K7: 83.49 | L7: 12 | M7: 0 | N7: 95.49 | O7: 0.899406612 | P7: 89.9406612 | Q7: 100 | R7: 0 | S7: 0 | T7: 100 | U7: 0.8 | V7: 80 | W7: 87.0753812 | X7: 5
A8: 6 | B8: 2022210535 | C8: 王岚 | D8: 催化学硕 | E8: 106.8189189 | F8: =8+5 -> 13.00 | G8: 0 | H8: 119.8189189 | I8: 0.9757884592 | J8: 97.57884592 | K8: 88.68 | L8: 0 | M8: 0 | N8: 88.68 | O8: 0.8352641989 | P8: 83.52641989 | Q8: 100 | R8: 0 | S8: 0 | T8: 100 | U8: 0.8 | V8: 80 | W8: 85.98426311 | X8: 6
A9: 7 | B9: 2022210623 | C9: 王露露 | D9: 催化学硕 | E9: 107.7918919 | F9: =10+5 -> 15.00 | G9: 0 | H9: 122.7918919 | I9: 1 | J9: 100 | K9: 83.89 | L9: 0 | M9: 0 | N9: 83.89 | O9: 0.790147876 | P9: 79.0147876 | Q9: 115 | R9: 10 | S9: 0 | T9: 125 | U9: 1 | V9: 100 | W9: 85.31035132 | X9: 7
A10: 8 | B10: 2022210558 | C10: 周佳玥 | D10: 催化学硕 | E10: 109.445946 | F10: 5.00 | G10: 0 | H10: 114.445946 | I10: =H10/122.7919 -> 0.932031722 | J10: 93.2031722 | K10: 82.16 | L10: 6 | M10: 0 | N10: 88.16 | O10: 0.8303663935 | P10: 83.03663935 | Q10: 100 | R10: 0 | S10: 0 | T10: 100 | U10: 0.8 | V10: 80 | W10: 84.76628199 | X10: 8
A11: 9 | B11: 2022210528 | C11: 郭慧娟 | D11: 催化学硕 | E11: 106.6513514 | F11: =6.8+5 -> 11.80 | G11: 0 | H11: 118.4513514 | I11: 0.9646511814 | J11: 96.46511814 | K11: 85.81 | L11: 0 | M11: 0 | N11: 85.81 | O11: 0.8082320806 | P11: 80.82320806 | Q11: 106.67 | R11: 2 | S11: 0 | T11: 108.67 | U11: 0.86936 | V11: 86.936 | W11: 84.56286927 | X11: 9
A12: 10 | B12: 2022210617 | C12: 魏豪斌 | D12: 催化学硕 | E12: 103.027027 | F12: 4.00 | G12: 0 | H12: 107.027027 | I12: 0.8716130869 | J12: 87.16130869 | K12: 85.29 | L12: 3 | M12: 0 | N12: 88.29 | O12: 0.8315908449 | P12: 83.15908449 | Q12: 100 | R12: 0 | S12: 0 | T12: 100 | U12: 0.8 | V12: 80 | W12: 83.64362088 | X12: 10
A13: 11 | B13: 2022210635 | C13: 王硕 | D13: 催化学硕 | E13: 98.83783784 | F13: 3.00 | G13: 0 | H13: 101.8378378 | I13: 0.8293530586 | J13: 82.93530586 | K13: 83.81 | L13: 5.5 | M13: 0 | N13: 89.31 | O13: 0.8411980786 | P13: 84.11980786 | Q13: 100 | R13: 0 | S13: 0 | T13: 100 | U13: 0.8 | V13: 80 | W13: 83.47092667 | X13: 11
A14: 12 | B14: 2022210585 | C14: 杨驰 | D14: 催化学硕 | E14: 106.1081081 | F14: 0.00 | G14: 0 | H14: 106.1081081 | I14: 0.8641295403 | J14: 86.41295403 | K14: 87.18 | L14: 0 | M14: 0 | N14: 87.18 | O14: 0.8211359141 | P14: 82.11359141 | Q14: 100 | R14: 0 | S14: 0 | T14: 100 | U14: 0.8 | V14: 80 | W14: 82.76210479 | X14: 12
A15: 13 | B15: 2022210565 | C15: 王娜 | D15: 催化学硕 | E15: 105.4702703 | F15: 0.00 | G15: 0 | H15: 105.4702703 | I15: 0.8589350788 | J15: 85.89350788 | K15: 86.4 | L15: 0 | M15: 0 | N15: 86.4 | O15: 0.813789206 | P15: 81.3789206 | Q15: 107 | R15: 0 | S15: 0 | T15: 107 | U15: 0.856 | V15: 85.6 | W15: 82.70394599 | X15: 13
A16: 14 | B16: 2022210616 | C16: 马阿慧 | D16: 催化学硕 | E16: 103.0648649 | F16: 4.00 | G16: 0 | H16: 107.0648649 | I16: 0.8719212334 | J16: 87.19212334 | K16: 86.815 | L16: 0 | M16: 0 | N16: 86.815 | O16: 0.8176980315 | P16: 81.76980315 | Q16: 100 | R16: 0 | S16: 0 | T16: 100 | U16: 0.8 | V16: 80 | W16: 82.67728687 | X16: 14
A17: 15 | B17: 2022210589 | C17: 杜大兴 | D17: 催化学硕 | E17: 103.1216216 | F17: 0.00 | G17: 0 | H17: 103.1216216 | I17: 0.8398080134 | J17: 83.98080134 | K17: 86.74 | L17: 0 | M17: 0 | N17: 86.74 | O17: 0.8169916172 | P17: 81.69916172 | Q17: 100 | R17: 0 | S17: 0 | T17: 100 | U17: 0.8 | V17: 80 | W17: 81.98557347 | X17: 15
A18: 16 | B18: 2022210566 | C18: 王子溪 | D18: 催化学硕 | E18: 103.8438889 | F18: 0.00 | G18: 0 | H18: 103.8438889 | I18: 0.8456900569 | J18: 84.56900569 | K18: 85.89 | L18: 0.6374 | M18: 0 | N18: 86.5274 | O18: 0.8149891683 | P18: 81.49891683 | Q18: 100 | R18: 0 | S18: 0 | T18: 100 | U18: 0.8 | V18: 80 | W18: 81.96304292 | X18: 16
A19: 17 | B19: 2022210562 | C19: 韩玉潇 | D19: 催化学硕 | E19: 103.927027 | F19: 7.00 | G19: 0 | H19: 110.927027 | I19: 0.9033741395 | J19: 90.33741395 | K19: 83.05 | L19: 0 | M19: 0 | N19: 83.05 | O19: 0.7822360365 | P19: 78.22360365 | Q19: 106.67 | R19: 0 | S19: 0 | T19: 106.67 | U19: 0.85336 | V19: 85.336 | W19: 81.35760535 | X19: 17
A20: 18 | B20: 2022210644 | C20: 何刚 | D20: 催化学硕 | E20: 100.7810811 | F20: 0.00 | G20: 0 | H20: 100.7810811 | I20: 0.8207469801 | J20: 82.07469801 | K20: 82.85 | L20: 3 | M20: 0 | N20: 85.85 | O20: 0.8086088349 | P20: 80.86088349 | Q20: 100 | R20: 0 | S20: 0 | T20: 100 | U20: 0.8 | V20: 80 | W20: 81.01755804 | X20: 18
A21: 19 | B21: 2022210504 | C21: 郑佳硕 | D21: 催化学硕 | E21: 104.427027 | F21: 4.60 | G21: 0 | H21: 109.027027 | I21: 0.8879008062 | J21: 88.79008062 | K21: 82.24 | L21: 0.9643 | M21: 0 | N21: 83.2043 | O21: 0.7836893661 | P21: 78.36893661 | Q21: 103 | R21: 2 | S21: 0 | T21: 105 | U21: 0.84 | V21: 84 | W21: 81.01627175 | X21: 19
A22: 20 | B22: 2022210563 | C22: 王精文 | D22: 催化学硕 | E22: 104.4837838 | F22: 4.60 | G22: 0 | H22: 109.0837838 | I22: 0.8883630256 | J22: 88.83630256 | K22: 83.65 | L22: 0 | M22: 0 | N22: 83.65 | O22: 0.7878873505 | P22: 78.78873505 | Q22: 100 | R22: 0 | S22: 0 | T22: 100 | U22: 0.8 | V22: 80 | W22: 80.91937504 | X22: 20
A23: 21 | B23: 2022210564 | C23: 胡临凯 | D23: 催化学硕 | E23: 103.4891892 | F23: 4.00 | G23: 0 | H23: 107.4891892 | I23: 0.8753768709 | J23: 87.53768709 | K23: 83.34 | L23: 0 | M23: 0 | N23: 83.34 | O23: 0.7849675049 | P23: 78.49675049 | Q23: 100 | R23: 0 | S23: 0 | T23: 100 | U23: 0.8 | V23: 80 | W23: 80.45526277 | X23: 21
A24: 22 | B24: 2022210590 | C24: 檀宇航 | D24: 催化学硕 | E24: 99.04594595 | F24: 0.00 | G24: 0 | H24: 99.04594595 | I24: 0.8066162829 | J24: 80.66162829 | K24: 85.19 | L24: 0 | M24: 0 | N24: 85.19 | O24: 0.8023923896 | P24: 80.23923896 | Q24: 100 | R24: 0 | S24: 0 | T24: 100 | U24: 0.8 | V24: 80 | W24: 80.29979293 | X24: 22
A25: 23 | B25: 2022210518 | C25: 柳静 | D25: 催化学硕 | E25: 103.3378378 | F25: 4.00 | G25: 0 | H25: 107.3378378 | I25: 0.8741442864 | J25: 87.41442864 | K25: 82.71 | L25: 0 | M25: 0 | N25: 82.71 | O25: 0.7790336253 | P25: 77.90336253 | Q25: 100 | R25: 0 | S25: 0 | T25: 100 | U25: 0.8 | V25: 80 | W25: 80.0152395 | X25: 23
A26: 24 | B26: 2022210643 | C26: 管学峰 | D26: 催化学硕 | E26: 98.97027027 | F26: 0.00 | G26: 0 | H26: 98.97027027 | I26: 0.8059999908 | J26: 80.59999908 | K26: 81.45 | L26: 3.1 | M26: 0 | N26: 84.55 | O26: 0.7963643214 | P26: 79.63643214 | Q26: 100 | R26: 0 | S26: 0 | T26: 100 | U26: 0.8 | V26: 80 | W26: 79.86550231 | X26: 24
A27: 25 | B27: 2022210651 | C27: 徐豪 | D27: 催化学硕 | E27: 103.1213514 | F27: 0.00 | G27: 0 | H27: 103.1213514 | I27: 0.8398058129 | J27: 83.98058129 | K27: 82.96 | L27: 0 | M27: 0 | N27: 82.96 | O27: 0.7813883395 | P27: 78.13883395 | Q27: 100 | R27: 0 | S27: 0 | T27: 100 | U27: 0.8 | V27: 80 | W27: 79.49330002 | X27: 25
A28: 26 | B28: 2022210556 | C28: 马佳倩 | D28: 催化学硕 | E28: 103.2489189 | F28: 1.25 | G28: 0 | H28: 104.4989189 | I28: 0.8510245293 | J28: 85.10245293 | K28: 80.53 | L28: 2 | M28: 0 | N28: 82.53 | O28: 0.7773382311 | P28: 77.73382311 | Q28: 100 | R28: 0 | S28: 0 | T28: 100 | U28: 0.8 | V28: 80 | W28: 79.43416677 | X28: 26
A29: 27 | B29: 2022210503 | C29: 李昌昕 | D29: 催化学硕 | E29: 98.95135135 | F29: 0.00 | G29: 0 | H29: 98.95135135 | I29: 0.8058459178 | J29: 80.58459178 | K29: 83.655 | L29: 0 | M29: 0 | N29: 83.655 | O29: 0.7879344448 | P29: 78.79344448 | Q29: 100 | R29: 0 | S29: 0 | T29: 100 | U29: 0.8 | V29: 80 | W29: 79.27232949 | X29: 27
A30: 28 | B30: 2022210557 | C30: 张福海 | D30: 催化学硕 | E30: 98.83783784 | F30: 0.00 | G30: 0 | H30: 98.83783784 | I30: 0.8049214797 | J30: 80.49214797 | K30: 83.09 | L30: 0 | M30: 0 | N30: 83.09 | O30: 0.7826127908 | P30: 78.26127908 | Q30: 100 | R30: 0 | S30: 0 | T30: 100 | U30: 0.8 | V30: 80 | W30: 78.88132495 | X30: 28
A31: 29 | B31: 2022210646 | C31: 季冀涛 | D31: 催化学硕 | E31: 95.87567568 | F31: 0.00 | G31: 0 | H31: 95.87567568 | I31: 0.7807980468 | J31: 78.07980468 | K31: 83.59 | L31: 0 | M31: 0 | N31: 83.59 | O31: 0.7873222191 | P31: 78.73222191 | Q31: 100 | R31: 0 | S31: 0 | T31: 100 | U31: 0.8 | V31: 80 | W31: 78.72851627 | X31: 29
A32: 30 | B32: 2022210529 | C32: 景文江 | D32: 催化学硕 | E32: 98.91351351 | F32: 0.00 | G32: 0 | H32: 98.91351351 | I32: 0.8055377717 | J32: 80.55377717 | K32: 81.69 | L32: 0 | M32: 0 | N32: 81.69 | O32: 0.7694263916 | P32: 76.94263916 | Q32: 100 | R32: 0 | S32: 0 | T32: 100 | U32: 0.8 | V32: 80 | W32: 77.97060285 | X32: 30
A33: 31 | B33: 2022210634 | C33: 王祺元 | D33: 催化学硕 | E33: 99.06486486 | F33: 0.00 | G33: 0 | H33: 99.06486486 | I33: 0.8067703559 | J33: 80.67703559 | K33: 80 | L33: 0 | M33: 0 | N33: 80 | O33: 0.7535085241 | P33: 75.35085241 | Q33: 100 | R33: 0 | S33: 0 | T33: 100 | U33: 0.8 | V33: 80 | W33: 76.8810038 | X33: 31
A34: 32 | B34: 2022210586 | C34: 张宇琪 | D34: 催化学硕 | E34: 96.87567568 | F34: 0.00 | G34: 0 | H34: 96.87567568 | I34: 0.7889419064 | J34: 78.89419064 | K34: 69.83 | L34: 0 | M34: 0 | N34: 69.83 | O34: 0.6577187529 | P34: 65.77187529 | Q34: 100 | R34: 0 | S34: 0 | T34: 100 | U34: 0.8 | V34: 80 | W34: 69.81915083 | X34: 32

Sheet 催化专硕
A1: 序号 | B1: 姓名 | C1: 方向 | D1: 德育部分 | J1: 智育部分 | P1: 文体部分 | V1: 总分 | W1: 排名
D2: 基础分 | E2: 奖励分 | F2: 惩罚分 | G2: 个人德育总分 | H2: 个人德育总分/基准 | I2: 德育总成绩 | J2: 基础分 | K2: 奖励分 | L2: 惩罚分 | M2: 个人智育总分 | N2: 个人智育总分/基准 | O2: 智育总成绩 | P2: 基础分 | Q2: 奖励分 | R2: 惩罚分 | S2: 个人文体总分 | T2: 个人文体总分/基准 | U2: 文体总成绩
A3: 1 | B3: 乔倩 | C3: 催化专硕 | D3: 95 | E3: 17.07 | F3: 0 | G3: 112.07 | H3: =G3/119.6 -> 0.9370401338 | I3: =H3*100 -> 93.70401338 | J3: 87.04 | K3: 17.125 | L3: 0 | M3: 104.165 | N3: =M3/104.165 -> 1 | O3: =N3*100 -> 100 | P3: 100 | Q3: 7.167 | R3: 0 | S3: 107.167 | T3: =S3/120.97 -> 0.8858973299 | U3: =T3*100 -> 88.58973299 | V3: =U3*0.1+O3*0.7+I3*0.2 -> 97.59977597 | W3: 1
A4: 2 | B4: 张豪丹 | C4: 催化专硕 | D4: 95.7 | E4: 14 | F4: 0 | G4: 109.7 | H4: 0.9172240803 | I4: 91.72240803 | J4: 87.9 | K4: 8.1786 | L4: 0 | M4: 96.0786 | N4: 0.9223693179 | O4: 92.23693179 | P4: 100 | Q4: 18.56 | R4: 0 | S4: 118.56 | T4: 0.9800777052 | U4: 98.00777052 | V4: 92.71111091 | W4: 2
A5: 3 | B5: 谢保振 | C5: 催化专硕 | D5: 96.4 | E5: 23.2 | F5: 0 | G5: 119.6 | H5: 1 | I5: 100 | J5: 86.16 | K5: 0.59 | L5: 0 | M5: 86.75 | N5: 0.832813325 | O5: 83.2813325 | P5: 100 | Q5: 2.5 | R5: 0 | S5: 102.5 | T5: 0.8473175167 | U5: 84.73175167 | V5: 86.77010792 | W5: 3
A6: 4 | B6: 徐智超 | C6: 催化专硕 | D6: 95 | E6: 10 | F6: 0 | G6: 105 | H6: 0.8779264214 | I6: 87.79264214 | J6: 90.22 | K6: 0 | L6: 0 | M6: 90.22 | N6: 0.866125858 | O6: 86.6125858 | P6: 100 | Q6: 1 | R6: 0 | S6: 101 | T6: 0.8349177482 | U6: 83.49177482 | V6: 86.53651597 | W6: 4
A7: 5 | B7: 张婷 | C7: 催化专硕 | D7: 95 | E7: 7 | F7: 0 | G7: 102 | H7: 0.8528428094 | I7: 85.28428094 | J7: 89.95 | K7: 0 | L7: 0 | M7: 89.95 | N7: 0.8635338165 | O7: 86.35338165 | P7: 100 | Q7: 6.1 | R7: 0 | S7: 106.1 | T7: 0.8770769612 | U7: 87.70769612 | V7: 86.27499296 | W7: 5
A8: 6 | B8: 汪博迪 | C8: 催化专硕 | D8: 95.7 | E8: 0 | F8: 0 | G8: 95.7 | H8: 0.8001672241 | I8: 80.01672241 | J8: 90.55 | K8: 0 | L8: 0 | M8: 90.55 | N8: 0.8692939087 | O8: 86.92939087 | P8: 100 | Q8: 0.5 | R8: 0 | S8: 100.5 | T8: 0.830784492 | U8: 83.0784492 | V8: 85.16176301 | W8: 6
A9: 7 | B9: 董宇晴 | C9: 催化专硕 | D9: 95.7 | E9: 11 | F9: 0 | G9: 106.7 | H9: 0.8921404682 | I9: 89.21404682 | J9: 86.51 | K9: 0.75 | L9: 0 | M9: 87.26 | N9: 0.8377094034 | O9: 83.77094034 | P9: 100 | Q9: 3 | R9: 0 | S9: 103 | T9: 0.8514507729 | U9: 85.14507729 | V9: 84.99697533 | W9: 7
A10: 8 | B10: 韩心怡 | C10: 催化专硕 | D10: 95 | E10: 3 | F10: 0 | G10: 98 | H10: 0.8193979933 | I10: 81.93979933 | J10: 89.24 | K10: 0 | L10: 0 | M10: 89.24 | N10: 0.8567177075 | O10: 85.67177075 | P10: 100 | Q10: 0.5 | R10: 0 | S10: 100.5 | T10: 0.830784492 | U10: 83.0784492 | V10: 84.66604431 | W10: 8
A11: 9 | B11: 王银磊 | C11: 催化专硕 | D11: 95.7 | E11: 4 | F11: 0 | G11: 99.7 | H11: 0.8336120401 | I11: 83.36120401 | J11: 88.72 | K11: 0 | L11: 0 | M11: 88.72 | N11: 0.8517256276 | O11: 85.17256276 | P11: 100 | Q11: 1 | R11: 0 | S11: 101 | T11: 0.8349177482 | U11: 83.49177482 | V11: 84.64221222 | W11: 9
A12: 10 | B12: 王文骁 | C12: 催化专硕 | D12: 95.7 | E12: 0 | F12: 0 | G12: 95.7 | H12: 0.8001672241 | I12: 80.01672241 | J12: 87.1 | K12: 1.5 | L12: 0 | M12: 88.6 | N12: 0.8505736092 | O12: 85.05736092 | P12: 100 | Q12: 4.33 | R12: 0 | S12: 104.33 | T12: 0.8624452344 | U12: 86.24452344 | V12: 84.16794947 | W12: 10
A13: 11 | B13: 刘涵 | C13: 催化专硕 | D13: 95.7 | E13: 3.57 | F13: 0 | G13: 99.27 | H13: 0.8300167224 | I13: 83.00167224 | J13: 85.39 | K13: 0 | L13: 0 | M13: 85.39 | N13: 0.8197571161 | O13: 81.97571161 | P13: 100 | Q13: 8.67 | R13: 0 | S13: 108.67 | T13: 0.898321898 | U13: 89.8321898 | V13: 82.96655156 | W13: 11
A14: 12 | B14: 胡丹丹 | C14: 催化专硕 | D14: 95 | E14: 5 | F14: 0 | G14: 100 | H14: 0.8361204013 | I14: 83.61204013 | J14: 85.73 | K14: 0 | L14: 0 | M14: 85.73 | N14: 0.8230211683 | O14: 82.30211683 | P14: 100 | Q14: 1 | R14: 0 | S14: 101 | T14: 0.8349177482 | U14: 83.49177482 | V14: 82.68306729 | W14: 12
A15: 13 | B15: 吕向杰 | C15: 催化专硕 | D15: 95.7 | E15: 8.13 | F15: 0 | G15: 103.83 | H15: 0.8681438127 | I15: 86.81438127 | J15: 84.57 | K15: 0 | L15: 0 | M15: 84.57 | N15: 0.8118849902 | O15: 81.18849902 | P15: 100 | Q15: 1 | R15: 0 | S15: 101 | T15: 0.8349177482 | U15: 83.49177482 | V15: 82.54400305 | W15: 13
A16: 15 | B16: 王延一 | C16: 催化专硕 | D16: 97.1 | E16: 10 | F16: 0 | G16: 107.1 | H16: 0.8954849498 | I16: 89.54849498 | J16: 83.48 | K16: 0 | L16: 0 | M16: 83.48 | N16: 0.8014208227 | O16: 80.14208227 | P16: 100 | Q16: 1 | R16: 0 | S16: 101 | T16: 0.8349177482 | U16: 83.49177482 | V16: 82.35833407 | W16: 14
A17: 14 | B17: 李状 | C17: 催化专硕 | D17: 95 | E17: 0 | F17: 0 | G17: 95 | H17: 0.7943143813 | I17: 79.43143813 | J17: 86.29 | K17: 0 | L17: 0 | M17: 86.29 | N17: 0.8283972544 | O17: 82.83972544 | P17: 100 | Q17: 0.5 | R17: 0 | S17: 100.5 | T17: 0.830784492 | U17: 83.0784492 | V17: 82.18194035 | W17: 15
A18: 16 | B18: 赵辰 | C18: 催化专硕 | D18: 95 | E18: 9 | F18: 0 | G18: 104 | H18: 0.8695652174 | I18: 86.95652174 | J18: 83.37 | K18: 0 | L18: 0 | M18: 83.37 | N18: 0.8003648058 | O18: 80.03648058 | P18: 100 | Q18: 5.67 | R18: 0 | S18: 105.67 | T18: 0.8735223609 | U18: 87.35223609 | V18: 82.15206437 | W18: 16
A19: 17 | B19: 李建辉 | C19: 催化专硕 | D19: 95.7 | E19: 3.67 | F19: 0 | G19: 99.37 | H19: 0.8308528428 | I19: 83.08528428 | J19: 84.125 | K19: 0 | L19: 0 | M19: 84.125 | N19: 0.8076129218 | O19: 80.76129218 | P19: 100 | Q19: 1 | R19: 0 | S19: 101 | T19: 0.8349177482 | U19: 83.49177482 | V19: 81.49913886 | W19: 17
A20: 18 | B20: 翟敏慧 | C20: 催化专硕 | D20: 95 | E20: 0.5 | F20: 0 | G20: 95.5 | H20: 0.7984949833 | I20: 79.84949833 | J20: 82.28 | K20: 0 | L20: 0 | M20: 82.28 | N20: 0.7899006384 | O20: 78.99006384 | P20: 100 | Q20: 0.5 | R20: 0 | S20: 100.5 | T20: 0.830784492 | U20: 83.0784492 | V20: 79.57078927 | W20: 18
A21: 19 | B21: 安海涛 | C21: 催化专硕 | D21: 95.7 | E21: 8.07 | F21: 0 | G21: 103.77 | H21: 0.8676421405 | I21: 86.76421405 | J21: 77.36 | K21: 0 | L21: 0 | M21: 77.36 | N21: 0.7426678827 | O21: 74.26678827 | P21: 100 | Q21: 20.97 | R21: 0 | S21: 120.97 | T21: 1 | U21: 100 | V21: 79.3395946 | W21: 19
A22: 20 | B22: 徐焘 | C22: 催化专硕 | D22: 95 | E22: 0 | F22: 0 | G22: 95 | H22: 0.7943143813 | I22: 79.43143813 | J22: 78.36 | K22: 3.2083 | L22: 0 | M22: 81.5683 | N22: 0.7830682091 | O22: 78.30682091 | P22: 100 | Q22: 0 | R22: 0 | S22: 100 | T22: 0.8266512358 | U22: 82.66512358 | V22: 78.96757462 | W22: 20

Sheet 环境学硕
A1: 序号 | B1: 学号 | C1: 姓名 | D1: 方向 | E1: 德育成绩 | K1: 智育成绩 | Q1: 文体成绩 | W1: 总分 | X1: 排名
E2: 基础分 | F2: 奖励分 | G2: 惩罚分 | H2: 个人德育总分 | I2: 个人德育总分/基准 | J2: 德育总成绩 | K2: 基础分 | L2: 奖励分 | M2: 惩罚分 | N2: 个人智育总分 | O2: 个人智育总分/基准 | P2: 智育总成绩 | Q2: 基础分 | R2: 奖励分 | S2: 惩罚分 | T2: 个人文体总分 | U2: 个人文体总分/基准 | V2: 文体总成绩
A3: 1 | B3: 2022210682 | C3: 步路通 | D3: 环境学硕 | E3: 87.40856844 | F3: 2 | G3: 0 | H3: =E3+F3+G3 -> 89.40856844 | I3: =H3/123.762681 -> 0.7224194541 | J3: =I3*100 -> 72.24194541 | K3: 92.44759135 | L3: 44.25595238 | M3: 0 | N3: =K3+L3+M3 -> 136.7035437 | O3: =N3/136.7035437 -> 1 | P3: =O3*100 -> 100 | Q3: 89.77 | S3: 0 | T3: =Q3+R3+S3 -> 89.77 | U3: =T3/107.933 -> 0.8317196779 | V3: =U3*100 -> 83.17196779 | W3: 92.76558586 | X3: 1
A4: 2 | B4: 2022210683 | C4: 宋登昊 | D4: 环境学硕 | E4: 87.24436483 | F4: 2 | G4: 0 | H4: =E4+F4+G4 -> 89.24436483 | I4: =H4/123.762681 -> 0.7210926922 | J4: =I4*100 -> 72.10926922 | K4: 90.7705146 | L4: 30.95238095 | M4: 0 | N4: =K4+L4+M4 -> 121.7228956 | O4: =N4/136.7035437 -> 0.8904150709 | P4: =O4*100 -> 89.04150709 | Q4: 100 | R4: 7.933 | S4: 0 | T4: =Q4+R4+S4 -> 107.933 | U4: =T4/107.933 -> 1 | V4: =U4*100 -> 100 | W4: 86.75090879 | X4: 2
A5: 3 | B5: 2022210664 | C5: 曹谨慧 | D5: 环境学硕 | E5: 87.52606999 | F5: 6.5 | G5: 0 | H5: 94.02606999 | I5: 0.7597287747 | J5: 75.97287747 | K5: 100 | L5: 15 | M5: 0 | N5: 115 | O5: 0.8412364222 | P5: 84.12364222 | Q5: 89.77 | R5: 0 | S5: 0 | T5: 89.77 | U5: 0.8317196779 | V5: 83.17196779 | W5: 82.39832181 | X5: 3
A6: 4 | B6: 2022210665 | C6: 李翀 | D6: 环境学硕 | E6: 99.962681 | F6: 23.8 | G6: 0 | H6: 123.762681 | I6: 1 | J6: 100 | K6: 98.52736644 | L6: 5.277777778 | M6: 0 | N6: 103.8051442 | O6: 0.7593449402 | P6: 75.93449402 | Q6: 93.96 | R6: 0 | S6: 0 | T6: 93.96 | U6: 0.8705400573 | V6: 87.05400573 | W6: 81.85954637 | X6: 4
A7: 5 | B7: 2022210658 | C7: 薛甜甜 | D7: 环境学硕 | E7: 91.33900582 | F7: 9 | G7: 0 | H7: 100.3390058 | I7: 0.8107371706 | J7: 81.07371706 | K7: 93.82031533 | L7: 12 | M7: 0 | N7: 105.8203153 | O7: 0.7740861171 | P7: 77.40861171 | Q7: 89.77 | R7: 0 | S7: 0 | T7: 89.77 | U7: 0.8317196779 | V7: 83.17196779 | W7: 78.71796837 | X7: 5
A8: 6 | B8: 2022210679 | C8: 桂雨飞 | D8: 环境学硕 | E8: 95.02399079 | F8: 19 | G8: 0 | H8: 114.0239908 | I8: 0.9213115769 | J8: 92.13115769 | K8: 98.15637843 | L8: 0.08333333333 | M8: 0 | N8: 98.23971176 | O8: 0.718633249 | P8: 71.8633249 | Q8: 99.58 | R8: 2 | S8: 0 | T8: 101.58 | U8: 0.9411394106 | V8: 94.11394106 | W8: 78.14195306 | X8: 6
A9: 7 | B9: 2022210657 | C9: 李莉 | D9: 环境学硕 | E9: 93.34015738 | F9: 17 | G9: 0 | H9: 110.3401574 | I9: 0.8915462762 | J9: 89.15462762 | K9: 98.26439616 | L9: 2.272727273 | M9: 0 | N9: 100.5371234 | O9: 0.7354390436 | P9: 73.54390436 | Q9: 89.77 | R9: 0 | S9: 0 | T9: 89.77 | U9: 0.8317196779 | V9: 83.17196779 | W9: 77.62885534 | X9: 7
A10: 8 | B10: 2022210652 | C10: 方洁 | D10: 环境学硕 | E10: 94.40214957 | F10: 20 | G10: 0 | H10: 114.4021496 | I10: 0.9243670923 | J10: 92.43670923 | K10: 95.77226668 | L10: 0 | M10: 0 | N10: 95.77226668 | O10: 0.7005836431 | P10: 70.05836431 | Q10: 95.75 | R10: 0 | S10: 0 | T10: 95.75 | U10: 0.8871244198 | V10: 88.71244198 | W10: 76.39944105 | X10: 8
A11: 9 | B11: 2022210666 | C11: 李瑶 | D11: 环境学硕 | E11: 94.59620839 | F11: 8.5 | G11: 0 | H11: 103.0962084 | I11: 0.8330153125 | J11: 83.30153125 | K11: 96.62308762 | L11: 0.925 | M11: 0 | N11: 97.54808762 | O11: 0.7135739497 | P11: 71.35739497 | Q11: 89.77 | R11: 0 | S11: 0 | T11: 89.77 | U11: 0.8317196779 | V11: 83.17196779 | W11: 74.9276795 | X11: 9
A12: 10 | B12: 2022210680 | C12: 渠长双 | D12: 环境学硕 | E12: 90.02111189 | F12: 6 | G12: 0 | H12: 96.02111189 | I12: 0.7758486736 | J12: 77.58486736 | K12: 98.02001527 | L12: 0 | M12: 0 | N12: 98.02001527 | O12: 0.7170261473 | P12: 71.70261473 | Q12: 93.18 | R12: 4.667 | S12: 0 | T12: 97.847 | U12: 0.9065531394 | V12: 90.65531394 | W12: 74.77433517 | X12: 10
A13: 11 | B13: 2022210667 | C13: 沈燕婷 | D13: 环境学硕 | E13: 93.68050669 | F13: 7.5 | G13: 0 | H13: 101.1805067 | I13: 0.8175364809 | J13: 81.75364809 | K13: 95.17663421 | L13: 1.625 | M13: 0 | N13: 96.80163421 | O13: 0.7081135689 | P13: 70.81135689 | Q13: 89.77 | R13: 4.666 | S13: 0 | T13: 94.436 | U13: 0.8749502006 | V13: 87.49502006 | W13: 74.66818144 | X13: 11
A14: 12 | B14: 2022210661 | C14: 黄德安 | D14: 环境学硕 | E14: 100 | F14: 18.8 | G14: 0 | H14: 118.8 | I14: 0.9599016363 | J14: 95.99016363 | K14: 88.20186767 | L14: 1 | M14: 0 | N14: 89.20186767 | O14: 0.6525205218 | P14: 65.25205218 | Q14: 89.77 | R14: 0 | S14: 0 | T14: 89.77 | U14: 0.8317196779 | V14: 83.17196779 | W14: 73.19166602 | X14: 12
A15: 13 | B15: 2022210663 | C15: 王添谊 | D15: 环境学硕 | E15: 87.34885804 | F15: 4.5 | G15: 0 | H15: 91.84885804 | I15: 0.7421369455 | J15: 74.21369455 | K15: 95.25175944 | L15: 0 | M15: 0 | N15: 95.25175944 | O15: 0.696776081 | P15: 69.6776081 | Q15: 89.77 | R15: 4.666 | S15: 0 | T15: 94.436 | U15: 0.8749502006 | V15: 87.49502006 | W15: 72.36656657 | X15: 13
A16: 14 | B16: 2022210681 | C16: 孙舵 | D16: 环境学硕 | E16: 93.06122449 | F16: 0 | G16: 0 | H16: 93.06122449 | I16: 0.7519328423 | J16: 75.19328423 | K16: 95.54446535 | L16: 0.125 | M16: 0 | N16: 95.66946535 | O16: 0.6998316412 | P16: 69.98316412 | Q16: 89.77 | R16: 0 | S16: 0 | T16: 89.77 | U16: 0.8317196779 | V16: 83.17196779 | W16: 72.3440685 | X16: 14
A17: 15 | B17: 2022210674 | C17: 邢甜甜 | D17: 环境学硕 | E17: 87.13454034 | F17: 5 | G17: 0 | H17: 92.13454034 | I17: 0.7444452527 | J17: 74.44452527 | K17: 89.64302272 | L17: 6.25 | M17: 0 | N17: 95.89302272 | O17: 0.7014669856 | P17: 70.14669856 | Q17: 89.77 | R17: 0 | S17: 0 | T17: 89.77 | U17: 0.8317196779 | V17: 83.17196779 | W17: 72.30879081 | X17: 15
A18: 16 | B18: 2022210685 | C18: 石云飞 | D18: 环境学硕 | E18: 87.90117928 | F18: 0 | G18: 0 | H18: 87.90117928 | I18: 0.7102397796 | J18: 71.02397796 | K18: 95.79972184 | L18: 0 | M18: 0 | N18: 95.79972184 | O18: 0.7007844804 | P18: 70.07844804 | Q18: 93.96 | R18: 0 | S18: 0 | T18: 93.96 | U18: 0.8705400573 | V18: 87.05400573 | W18: 71.96510978 | X18: 16
A19: 17 | B19: 2022210673 | C19: 谭鑫 | D19: 环境学硕 | E19: 89.60292581 | F19: 0 | G19: 0 | H19: 89.60292581 | I19: 0.7239898577 | J19: 72.39898577 | K19: 94.72415392 | L19: 0 | M19: 0 | N19: 94.72415392 | O19: 0.6929165942 | P19: 69.29165942 | Q19: 89.77 | R19: 0 | S19: 0 | T19: 89.77 | U19: 0.8317196779 | V19: 83.17196779 | W19: 71.30115552 | X19: 17
A20: 18 | B20: 2022210669 | C20: 郭川钰 | D20: 环境学硕 | E20: 86.05015674 | F20: 4 | G20: 0 | H20: 90.05015674 | I20: 0.7276034747 | J20: 72.76034747 | K20: 90.47206087 | L20: 0 | M20: 0 | N20: 90.47206087 | O20: 0.6618121112 | P20: 66.18121112 | Q20: 95.75 | R20: 12 | S20: 0 | T20: 107.75 | U20: 0.9983045037 | V20: 99.83045037 | W20: 70.86196231 | X20: 18
A21: 19 | B21: 2022210671 | C21: 李智豪 | D21: 环境学硕 | E21: 89.92386923 | F21: 3 | G21: 0 | H21: 92.92386923 | I21: 0.7508230145 | J21: 75.08230145 | K21: 92.277704 | L21: 0 | M21: 0 | N21: 92.277704 | O21: 0.67502057 | P21: 67.502057 | Q21: 89.77 | R21: 0 | S21: 0 | T21: 89.77 | U21: 0.8317196779 | V21: 83.17196779 | W21: 70.58509696 | X21: 19
A22: 20 | B22: 2022210676 | C22: 赵政翰 | D22: 环境学硕 | E22: 92.36005374 | F22: 4 | G22: 0 | H22: 96.36005374 | I22: 0.778587317 | J22: 77.8587317 | K22: 90.22937501 | L22: 0 | M22: 0 | N22: 90.22937501 | O22: 0.6600368401 | P22: 66.00368401 | Q22: 89.77 | R22: 0 | S22: 0 | T22: 89.77 | U22: 0.8317196779 | V22: 83.17196779 | W22: 70.09152191 | X22: 20
A23: 21 | B23: 2022210662 | C23: 孙国庆 | D23: 环境学硕 | E23: 89.5348986 | F23: 3 | G23: 0 | H23: 92.5348986 | I23: 0.7476801395 | J23: 74.76801395 | K23: 90.52673408 | L23: 0 | M23: 0 | N23: 90.52673408 | O23: 0.6622120512 | P23: 66.22120512 | Q23: 89.77 | R23: 0 | S23: 0 | T23: 89.77 | U23: 0.8317196779 | V23: 83.17196779 | W23: 69.62564314 | X23: 21
A24: 22 | B24: 2022210678 | C24: 胡若晖 | D24: 环境学硕 | E24: 86.87096155 | F24: 0 | G24: 0 | H24: 86.87096155 | I24: 0.7019156409 | J24: 70.19156409 | K24: 91.058569 | L24: 0.3 | M24: 0 | N24: 91.358569 | O24: 0.6682970063 | P24: 66.82970063 | Q24: 89.77 | R24: 2 | S24: 0 | T24: 91.77 | U24: 0.8502496919 | V24: 85.02496919 | W24: 69.32160016 | X24: 22
A25: 23 | B25: 2022210675 | C25: 李启明 | D25: 环境学硕 | E25: 87.74443947 | F25: 0 | G25: 0 | H25: 87.74443947 | I25: 0.7089733251 | J25: 70.89733251 | K25: 89.32158863 | L25: 0 | M25: 0 | N25: 89.32158863 | O25: 0.6533962925 | P25: 65.33962925 | Q25: 89.77 | R25: 0 | S25: 0 | T25: 89.77 | U25: 0.8317196779 | V25: 83.17196779 | W25: 68.23440375 | X25: 23
A26: 24 | B26: 2022210653 | C26: 郭鹏涛 | D26: 环境学硕 | E26: 89.50419039 | F26: 0 | G26: 0 | H26: 89.50419039 | I26: 0.7231920775 | J26: 72.31920775 | K26: 83.73105922 | L26: 0 | M26: 0 | N26: 83.73105922 | O26: 0.6125010146 | P26: 61.25010146 | Q26: 89.77 | R26: 0 | S26: 0 | T26: 89.77 | U26: 0.8317196779 | V26: 83.17196779 | W26: 65.65610934 | X26: 24

Sheet 环境专硕
A1: 序号 | B1: 学号 | C1: 姓名 | D1: 方向 | E1: 德育成绩 | K1: 智育成绩 | Q1: 文体成绩 | W1: 总分 | X1: 排名
E2: 基础分 | F2: 奖励分 | G2: 惩罚分 | H2: 个人德育总分 | I2: 个人德育总分/基准 | J2: 德育总成绩 | K2: 基础分 | L2: 奖励分 | M2: 惩罚分 | N2: 个人智育总分 | O2: 个人智育总分/基准 | P2: 智育总成绩 | Q2: 基础分 | R2: 奖励分 | S2: 惩罚分 | T2: 个人文体总分 | U2: 个人文体总分/基准 | V2: 文体总成绩
A3: 1 | B3: 2022215402 | C3: 董光宇 | D3: 环境专硕 | E3: 98.63607695 | F3: 2 | G3: 0 | H3: =E3+F3+G3 -> 100.6360769 | I3: =H3/120 -> 0.8386339746 | J3: =I3*100 -> 83.86339746 | K3: 95.34648903 | L3: 30.95238095 | M3: 0 | N3: =K3+L3+M3 -> 126.29887 | O3: =N3/126.29887 -> 0.9999999998 | P3: =O3*100 -> 99.99999998 | Q3: 97 | R3: 2 | S3: 0 | T3: =Q3+R3+S3 -> 99 | U3: =T3/124.666 -> 0.7941218937 | V3: =U3*100 -> 79.41218937 | W3: 94.71389843 | X3: 1
A4: 2 | B4: 2022215387 | C4: 陈宇轩 | D4: 环境专硕 | E4: 92.63143668 | F4: 2 | G4: 0 | H4: =E4+F4+G4 -> 94.63143668 | I4: =H4/120 -> 0.7885953057 | J4: =I4*100 -> 78.85953057 | K4: 95.39345268 | L4: 17 | M4: 0 | N4: =K4+L4+M4 -> 112.3934527 | O4: =N4/126.29887 -> 0.8899006989 | P4: =O4*100 -> 88.99006989 | Q4: 90.15 | R4: 0 | S4: 0 | T4: =Q4+R4+S4 -> 90.15 | U4: =T4/124.666 -> 0.7231322093 | V4: =U4*100 -> 72.31322093 | W4: 85.29627714 | X4: 2
A5: 3 | B5: 2022215395 | C5: 王铭华 | D5: 环境专硕 | E5: 100 | F5: 20 | G5: 0 | H5: 120 | I5: 1 | J5: 100 | K5: 95.99762051 | L5: 0 | M5: 0 | N5: 95.99762051 | O5: 0.7600829723 | P5: 76.00829723 | Q5: 100 | R5: 24.666 | S5: 0 | T5: 124.666 | U5: 1 | V5: 100 | W5: 83.20580807 | X5: 3
A6: 4 | B6: 2022215403 | C6: 唐国瑾 | D6: 环境专硕 | E6: 91.98990855 | F6: 0 | G6: 0 | H6: 91.98990855 | I6: 0.7665825712 | J6: 76.65825712 | K6: 96.00544778 | L6: 10.71428571 | M6: 0 | N6: 106.7197335 | O6: 0.8449777381 | P6: 84.49777381 | Q6: 100 | R6: 0 | S6: 0 | T6: 100 | U6: 0.802143327 | V6: 80.2143327 | W6: 82.50152637 | X6: 4
A7: 5 | B7: 2022215392 | C7: 费文博 | D7: 环境专硕 | E7: 96.95093932 | F7: 6.8 | G7: 0 | H7: 103.7509393 | I7: 0.864591161 | J7: 86.4591161 | K7: 97.86682282 | L7: 3.783549784 | M7: 0 | N7: 101.6503726 | O7: 0.8048399214 | P7: 80.48399214 | Q7: 90.15 | R7: 0 | S7: 0 | T7: 90.15 | U7: 0.7231322093 | V7: 72.31322093 | W7: 80.86193982 | X7: 5
A8: 6 | B8: 2022215394 | C8: 安宏坤 | D8: 环境专硕 | E8: 91.54052349 | F8: 11 | G8: 0 | H8: 102.5405235 | I8: 0.8545043625 | J8: 85.45043625 | K8: 92.32923739 | L8: 7.75 | M8: 0 | N8: 100.0792374 | O8: 0.7924001013 | P8: 79.24001013 | Q8: 90.15 | R8: 8 | S8: 0 | T8: 98.15 | U8: 0.7873036754 | V8: 78.73036754 | W8: 80.43113111 | X8: 6
A9: 7 | B9: 2022215390 | C9: 冯博 | D9: 环境专硕 | E9: 98.58088931 | F9: 8 | G9: 0 | H9: 106.5808893 | I9: 0.8881740776 | J9: 88.81740776 | K9: 99.04944262 | L9: 0 | M9: 0 | N9: 99.04944262 | O9: 0.7842464673 | P9: 78.42464673 | Q9: 90.15 | R9: 2.4 | S9: 0 | T9: 92.55 | U9: 0.7423836491 | V9: 74.23836491 | W9: 80.08457076 | X9: 7
A10: 8 | B10: 2022215389 | C10: 颜薇 | D10: 环境专硕 | E10: 92.73685633 | F10: 11 | G10: 0 | H10: 103.7368563 | I10: 0.8644738028 | J10: 86.44738028 | K10: 100 | L10: 0 | M10: 0 | N10: 100 | O10: 0.7917727213 | P10: 79.17727213 | Q10: 90.15 | R10: 0 | S10: 0 | T10: 90.15 | U10: 0.7231322093 | V10: 72.31322093 | W10: 79.94488865 | X10: 8
A11: 9 | B11: 2022215388 | C11: 吴琪 | D11: 环境专硕 | E11: 92.10974456 | F11: 2 | G11: 0 | H11: 94.10974456 | I11: 0.7842478713 | J11: 78.42478713 | K11: 99.43053309 | L11: 0 | M11: 0 | N11: 99.43053309 | O11: 0.7872638377 | P11: 78.72638377 | Q11: 90.15 | R11: 0 | S11: 0 | T11: 90.15 | U11: 0.7231322093 | V11: 72.31322093 | W11: 78.02474817 | X11: 9
A12: 10 | B12: 2022215393 | C12: 熊峰 | D12: 环境专硕 | E12: 91.44591611 | F12: 3 | G12: 0 | H12: 94.44591611 | I12: 0.787049301 | J12: 78.7049301 | K12: 94.45931627 | L12: 3.616883117 | M12: 0 | N12: 98.07619938 | O12: 0.7765405928 | P12: 77.65405928 | Q12: 90.15 | R12: 0 | S12: 0 | T12: 90.15 | U12: 0.7231322093 | V12: 72.31322093 | W12: 77.33014962 | X12: 10
A13: 11 | B13: 2022215401 | C13: 姚子旬 | D13: 环境专硕 | E13: 95.34802 | F13: 7 | G13: 0 | H13: 102.34802 | I13: 0.8529001667 | J13: 85.29001667 | K13: 94.12315109 | L13: 0.125 | M13: 0 | N13: 94.24815109 | O13: 0.7462311507 | P13: 74.62311507 | Q13: 93.99 | R13: 2 | S13: 0 | T13: 95.99 | U13: 0.7699773796 | V13: 76.99773796 | W13: 76.99395769 | X13: 11
A14: 12 | B14: 2021215383 | C14: 王红燕 | D14: 环境专硕 | E14: 98.60871501 | F14: 0 | G14: 0 | H14: 98.60871501 | I14: 0.8217392917 | J14: 82.17392917 | K14: 89.38709498 | L14: 0 | M14: 0 | N14: 89.38709498 | O14: 0.7077426344 | P14: 70.77426344 | Q14: 90.15 | R14: 0 | S14: 0 | T14: 90.15 | U14: 0.7231322093 | V14: 72.31322093 | W14: 73.20809234 | X14: 12
A15: 13 | B15: 2022215391 | C15: 许大山 | D15: 环境专硕 | E15: 91.92683696 | F15: 0 | G15: 0 | H15: 91.92683696 | I15: 0.7660569747 | J15: 76.60569747 | K15: 88.72901679 | L15: 0 | M15: 0 | N15: 88.72901679 | O15: 0.7025321508 | P15: 70.25321508 | Q15: 90.15 | R15: 0 | S15: 0 | T15: 90.15 | U15: 0.7231322093 | V15: 72.31322093 | W15: 71.72971215 | X15: 13

Sheet 国际班
A1: 序号 | B1: 学号 | C1: 姓名 | D1: 方向 | E1: 德育成绩 | K1: 智育成绩 | Q1: 文体成绩 | W1: 总分 | X1: 排名
E2: 基础分组 | F2: 奖励分 | G2: 惩罚分 | H2: 个人德育总分 | I2: 个人德育总分/基准 | J2: 德育总成绩 | K2: 基础分 | L2: 奖励分 | M2: 惩罚分 | N2: 个人智育总分 | O2: 个人智育总分/基准 | P2: 智育总成绩 | Q2: 基础分 | R2: 奖励分 | S2: 惩罚分 | T2: 个人文体总分 | U2: 个人文体总分/基准 | V2: 文体总成绩
A3: 1 | B3: 2022210631 | C3: 张钰萌 | D3: 国际班 | E3: 96.0111 | F3: 20.5000 | G3: 0.0000 | H3: 116.5111 | I3: 1.0000 | J3: 100.0000 | K3: 85.2044 | L3: 24.0000 | M3: 0.0000 | N3: 195.2068 | O3: 0.9915 | P3: 99.1495 | Q3: 94.0410 | R3: 9.3333 | S3: 0.0000 | T3: 103.3743 | U3: 1.0000 | V3: 100.0000 | W3: 99.4047 | X3: 1
A4: 2 | B4: 2022210655 | C4: 李思远 | D4: 国际班 | E4: 95.7778 | F4: 14.0000 | G4: 0.0000 | H4: 109.7778 | I4: 0.9422 | J4: 94.2209 | K4: 100.0000 | L4: 4.8500 | M4: 0.0000 | N4: 196.8812 | O4: 1.0000 | P4: 100.0000 | Q4: 81.9672 | R4: 0.0000 | S4: 0.0000 | T4: 81.9672 | U4: 0.7929 | V4: 79.2917 | W4: 96.7733 | X4: 2
A5: 3 | B5: 2022210660 | C5: 韩哲 | D5: 国际班 | E5: 96.2444 | F5: 4.6000 | G5: 0.0000 | H5: 100.8444 | I5: 0.8655 | J5: 86.5535 | K5: 83.7452 | L5: 18.2500 | M5: 0.0000 | N5: 187.4835 | O5: 0.9523 | P5: 95.2267 | Q5: 100.0000 | R5: 0.0000 | S5: 0.0000 | T5: 100.0000 | U5: 0.9674 | V5: 96.7358 | W5: 93.6430 | X5: 3
A6: 4 | B6: 2022210668 | C6: 宁潇宇 | D6: 国际班 | E6: 97.0611 | F6: 6.0000 | G6: 0.0000 | H6: 103.0611 | I6: 0.8846 | J6: 88.4560 | K6: 86.0675 | L6: 12.0500 | M6: 0.0000 | N6: 185.9763 | O6: 0.9446 | P6: 94.4612 | Q6: 82.7869 | R6: 0.0000 | S6: 0.0000 | T6: 82.7869 | U6: 0.8008 | V6: 80.0846 | W6: 91.8225 | X6: 4
A7: 5 | B7: 2022210517 | C7: 朱燕萍 | D7: 国际班 | E7: 95.4278 | F7: 8.0000 | G7: 0.0000 | H7: 103.4278 | I7: 0.8877 | J7: 88.7707 | K7: 86.8470 | L7: 0.0000 | M7: 0.0000 | N7: 175.5015 | O7: 0.8914 | P7: 89.1408 | Q7: 85.5164 | R7: 0.0000 | S7: 0.0000 | T7: 85.5164 | U7: 0.8272 | V7: 82.7250 | W7: 88.4252 | X7: 5
A8: 6 | B8: 2022215398 | C8: 李炯 | D8: 国际班 | E8: 96.5167 | F8: 7.0000 | G8: 0.0000 | H8: 103.5167 | I8: 0.8885 | J8: 88.8470 | K8: 86.1078 | L8: 0.4000 | M8: 0.0000 | N8: 175.1184 | O8: 0.8895 | P8: 88.9462 | Q8: 82.7869 | R8: 0.0000 | S8: 0.0000 | T8: 82.7869 | U8: 0.8008 | V8: 80.0846 | W8: 88.0402 | X8: 6
A9: 7 | B9: 2022210605 | C9: 马浩天 | D9: 国际班 | E9: 96.1667 | F9: 0.0000 | G9: 0.0000 | H9: 96.1667 | I9: 0.8254 | J9: 82.5386 | K9: 87.1676 | L9: 1.5000 | M9: 0.0000 | N9: 177.6494 | O9: 0.9023 | P9: 90.2318 | Q9: 82.7869 | R9: 0.0000 | S9: 0.0000 | T9: 82.7869 | U9: 0.8008 | V9: 80.0846 | W9: 87.6784 | X9: 7
A10: 8 | B10: 2022215400 | C10: 刘浩威 | D10: 国际班 | E10: 95.9722 | F10: 0.0000 | G10: 0.0000 | H10: 95.9722 | I10: 0.8237 | J10: 82.3717 | K10: 86.7357 | L10: 2.5000 | M10: 0.0000 | N10: 177.5266 | O10: 0.9017 | P10: 90.1694 | Q10: 82.7869 | R10: 0.0000 | S10: 0.0000 | T10: 82.7869 | U10: 0.8008 | V10: 80.0846 | W10: 87.6014 | X10: 8
A11: 9 | B11: 2022210638 | C11: 刘彧 | D11: 国际班 | E11: 96.4389 | F11: 0.0000 | G11: 0.0000 | H11: 96.4389 | I11: 0.8277 | J11: 82.7723 | K11: 87.0168 | L11: 0.0000 | M11: 0.0000 | N11: 176.2577 | O11: 0.8952 | P11: 89.5249 | Q11: 83.6066 | R11: 0.0000 | S11: 0.0000 | T11: 83.6066 | U11: 0.8088 | V11: 80.8775 | W11: 87.3096 | X11: 9
A12: 10 | B12: 2022210672 | C12: 冯若瑶 | D12: 国际班 | E12: 94.5333 | F12: 5.0000 | G12: 0.0000 | H12: 99.5333 | I12: 0.8543 | J12: 85.4282 | K12: 86.1656 | L12: 2.3500 | M12: 0.0000 | N12: 174.6245 | O12: 0.8870 | P12: 88.6954 | Q12: 81.9672 | R12: 0.0000 | S12: 0.0000 | T12: 81.9672 | U12: 0.7929 | V12: 79.2917 | W12: 87.1016 | X12: 10
A13: 11 | B13: 2022210684 | C13: 刘浩 | D13: 国际班 | E13: 95.5444 | F13: 0.0000 | G13: 0.0000 | H13: 95.5444 | I13: 0.8200 | J13: 82.0046 | K13: 86.8871 | L13: 0.0000 | M13: 0.0000 | N13: 175.5825 | O13: 0.8918 | P13: 89.1820 | Q13: 82.7869 | R13: 0.0000 | S13: 0.0000 | T13: 82.7869 | U13: 0.8008 | V13: 80.0846 | W13: 86.8368 | X13: 11
A14: 13 | B14: 2022210632 | C14: 程海洋 | D14: 国际班 | E14: 94.7667 | F14: 5.0000 | G14: 0.0000 | H14: 99.7667 | I14: 0.8563 | J14: 85.6285 | K14: 89.2582 | L14: 0.1000 | M14: 0.0000 | N14: 172.9742 | O14: 0.8786 | P14: 87.8571 | Q14: 83.6066 | R14: 0.0000 | S14: 0.0000 | T14: 83.6066 | U14: 0.8088 | V14: 80.8775 | W14: 86.7134 | X14: 12
A15: 12 | B15: 2022210656 | C15: 高冰洁 | D15: 国际班 | E15: 96.4778 | F15: 3.0000 | G15: 0.0000 | H15: 99.4778 | I15: 0.8538 | J15: 85.3805 | K15: 85.5112 | L15: 0.0000 | M15: 0.0000 | N15: 172.8021 | O15: 0.8777 | P15: 87.7697 | Q15: 82.7869 | R15: 0.0000 | S15: 0.0000 | T15: 82.7869 | U15: 0.8008 | V15: 80.0846 | W15: 86.5234 | X15: 13
A16: 14 | B16: 2022210546 | C16: 胡昀涛 | D16: 国际班 | E16: 96.4778 | F16: 8.0000 | G16: 0.0000 | H16: 104.4778 | I16: 0.8967 | J16: 89.6719 | K16: 82.8039 | L16: 0.0000 | M16: 0.0000 | N16: 167.3311 | O16: 0.8499 | P16: 84.9909 | Q16: 82.7869 | R16: 0.0000 | S16: 0.0000 | T16: 82.7869 | U16: 0.8008 | V16: 80.0846 | W16: 85.4365 | X16: 14
A17: 15 | B17: 2022210659 | C17: 王超然 | D17: 国际班 | E17: 96.2444 | F17: 0.0000 | G17: 0.0000 | H17: 96.2444 | I17: 0.8261 | J17: 82.6054 | K17: 84.0098 | L17: 0.0000 | M17: 0.0000 | N17: 170.5709 | O17: 0.8664 | P17: 86.6365 | Q17: 83.6066 | R17: 0.0000 | S17: 0.0000 | T17: 83.6066 | U17: 0.8088 | V17: 80.8775 | W17: 85.2543 | X17: 15
A18: 16 | B18: 2022210654 | C18: 刘明嘉 | D18: 国际班 | E18: 95.7389 | F18: 0.0000 | G18: 0.0000 | H18: 95.7389 | I18: 0.8217 | J18: 82.1715 | K18: 84.6776 | L18: 0.0000 | M18: 0.0000 | N18: 171.1176 | O18: 0.8691 | P18: 86.9141 | Q18: 81.9672 | R18: 0.0000 | S18: 0.0000 | T18: 81.9672 | U18: 0.7929 | V18: 79.2917 | W18: 85.2034 | X18: 16
A19: 17 | B19: 2022215399 | C19: 刘振华 | D19: 国际班 | E19: 96.5944 | F19: 4.0000 | G19: 0.0000 | H19: 100.5944 | I19: 0.8634 | J19: 86.3389 | K19: 83.2025 | L19: 0.0000 | M19: 0.0000 | N19: 168.1116 | O19: 0.8539 | P19: 85.3873 | Q19: 82.7869 | R19: 0.0000 | S19: 0.0000 | T19: 82.7869 | U19: 0.8008 | V19: 80.0846 | W19: 85.0474 | X19: 17
A20: 18 | B20: 2022215386 | C20: 丁家正 | D20: 国际班 | E20: 96.7889 | F20: 0.0000 | G20: 0.0000 | H20: 96.7889 | I20: 0.8307 | J20: 83.0727 | K20: 83.0221 | L20: 0.0000 | M20: 0.0000 | N20: 167.1721 | O20: 0.8491 | P20: 84.9101 | Q20: 82.7869 | R20: 0.0000 | S20: 0.0000 | T20: 82.7869 | U20: 0.8008 | V20: 80.0846 | W20: 84.0601 | X20: 18
A21: 19 | B21: 2022215397 | C21: 杜帅豪 | D21: 国际班 | E21: 92.5889 | F21: 3.0000 | G21: 0.0000 | H21: 95.5889 | I21: 0.8204 | J21: 82.0427 | K21: 82.3480 | L21: 0.0000 | M21: 0.0000 | N21: 167.2341 | O21: 0.8494 | P21: 84.9416 | Q21: 82.7869 | R21: 0.0000 | S21: 0.0000 | T21: 82.7869 | U21: 0.8008 | V21: 80.0846 | W21: 83.8761 | X21: 19
